{"text_format":"1","workbook":"xlsx","n_sheets":13,"sheets":["50 new","50","65","85","125 Юноши","125 муж","MX Открытый","МХ Открытый В","МХ Открытый С","ветераны А","ветераны Б","ветераны В","Лист1"],"not_rendered":{"charts":0,"images":2,"macros":1,"external_links":0,"defined_names":12,"comments":0,"pivot_tables":0},"unopened":[],"bounds":{"document_bytes":16777216,"sheet_cells":100000,"rows_first":2000,"rows_last":500,"rows_between":2000,"halvings":0,"cell_chars":16384,"cell_head_chars":4096},"cells_cut":0,"cells_raw":0,"read":"whole","date_system":"1900"}

{"sheet":"50 new","index":0,"n_rows":43,"n_cols":256,"rows_kept":43,"cut":false,"hidden":false,"merged":[[6,0,8,0],[6,1,8,1],[6,2,8,2],[6,3,8,3],[6,4,8,4],[0,13,3,13],[1,0,1,11],[2,0,2,12],[3,0,3,12],[4,0,4,12],[6,5,8,5],[6,6,8,6],[6,7,8,7],[6,8,6,9],[6,10,6,11],[6,13,8,13],[7,8,8,8],[7,9,8,9],[7,10,8,10],[7,11,8,11],[6,12,8,12]]}
[]
["Открытый Чемпионат и Первенство Крестецкого муниципального района и Крестецкого городского поселения по мотоциклетному кроссу, посвященные памяти авиаторов Северо-Западного фронта"]
["ПРОТОКОЛ  ЛИЧНОГО  ЗАЧЕТА",null,null,null,null,null,null,null,null,null,null,null,null,null,null,null,null,null,null,null,null,null,null,null,null,null,null,null,null,null,null,null,null,null,null,null,null,null,null,null,null,null,null,null,null,null,null,null,null,null,null,null,null,null,null,null,null,null,null,null,null,null,null,null,null,null,null,null,null,null,null,null,null,null,null,null,null,null,null,null,null,null,null,null,null,null,null,null,null,null,null,null,null,null,null,null,null,null,null,null,null,null,null,null,null,null,null,null,null,null,null,null,null,null,null,null,null,null,null,null,null,null,null,null,null,null,null,null,null,null,null,null,null,null,null,null,null,null,null,null,null,null,null,null,null,null,null,null,null,null,null,null,null,null,null,null,null,null,null,null,null,null,null,null,null,null,null,null,null,null,null,null,"первый этап"]
["п.Крестцы, Новгородская  область                                                                                                                       14-15 июня  2019 года.",null,null,null,null,null,null,null,null,null,null,null,null,null,null,null,null,null,null,null,null,null,null,null,null,null,null,null,null,null,null,null,null,null,null,null,null,null,null,null,null,null,null,null,null,null,null,null,null,null,null,null,null,null,null,null,null,null,null,null,null,null,null,null,null,null,null,null,null,null,null,null,null,null,null,null,null,null,null,null,null,null,null,null,null,null,null,null,null,null,null,null,null,null,null,null,null,null,null,null,null,null,null,null,null,null,null,null,null,null,null,null,null,null,null,null,null,null,null,null,null,null,null,null,null,null,null,null,null,null,null,null,null,null,null,null,null,null,null,null,null,null,null,null,null,null,null,null,null,null,null,null,null,null,null,null,null,null,null,null,null,"первый заезд личные очки",null,null,null,null,null,null,null,null,null,null,null,null,null,null,null,null,null,null,null,null,null,"второй заезд личные очки",null,null,null,null,null,null,null,null,null,null,null,null,null,null,null,null,null,null,null,null,null,null,"Первый заезд командные очки",null,null,null,null,null,null,null,null,null,null,null,null,null,null,null,null,null,null,null,null,null,null,"Второй заезд командные очки"]
["Класс 50 см3. \"мальчики\" (091 014 1 8 1 1 Н).",null,null,null,null,null,null,null,null,null,null,null,null,null,null,null,null,null,null,null,null,null,null,null,null,null,null,null,null,null,null,null,null,null,null,null,null,null,null,null,null,null,null,null,null,null,null,null,null,null,null,null,null,null,null,null,null,null,null,null,null,null,null,null,null,null,null,null,null,null,null,null,null,null,null,null,null,null,null,null,null,null,null,null,null,null,null,null,null,null,null,null,null,null,null,null,null,null,null,null,null,null,null,null,null,null,null,null,null,null,null,null,null,null,null,null,null,null,null,null,null,null,null,null,null,null,null,null,null,null,null,null,null,null,null,null,null,null,null,null,null,null,null,null,null,null,null,null,null,null,null,null,null,null,null,null,null,null,null,null,1,2,3,4,5,6,7,8,9,10,11,12,13,14,15,16,17,18,19,20,21,"сх","Sym",1,2,3,4,5,6,7,8,9,10,11,12,13,14,15,16,17,18,19,20,21,"cx","sym",1,2,3,4,5,6,7,8,9,10,11,12,13,14,15,16,17,18,19,20,21,"сх","очки",1,2,3,4,5,6,7,8,9,10,11,12,13,14,15,16,17,18,19,20,21,"сх","очки",{"$f":"COUNT(FE5:IR5)","v":84},"Н. Стро","В. стро","место"]
[]
["Место","Ст. №","Фамилия, Имя","Тип лицензии","Раз  ряд","Город (край, район, область)","Команда","Мото","I-й заезд",null,"II-й заезд",null,"Сумма очков              в личном зачете","Сумма очк. в командном зачете"]
[null,null,null,null,null,null,null,null,"место","лич. Очки.","место","лич. Очки.",null,null,null,null,null,"первый заезд личные очки",null,null,null,null,null,null,null,null,null,null,null,null,null,null,null,null,null,null,null,null,null,"второй заезд личные очки",null,null,null,null,null,null,null,null,null,null,null,null,null,null,null,null,null,null,null,null,null,null,"Первый заезд командные очки",null,null,null,null,null,null,null,null,null,null,null,null,null,null,null,null,null,null,null,null,null,null,null,null,null,null,null,null,null,null,null,null,null,null,null,null,null,null,null,null,null,null,"Второй заезд командные очки",null,null,null,null,null,null,null,null,null,null,null,null,null,null,null,null,null,null,null,null,null,null,null,null,null,null,null,null,null,null,null,null,null,null,null,null,null,null,null,null,null,null,null,1,2,null,null,null,null,null,null,null,null,null,null,null,null,null,null,null,null,null,null,null,null,null,"первый этап"]
[null,null,null,null,null,null,null,null,null,null,null,null,null,null,null,null,1,2,3,4,5,6,7,8,9,10,11,12,13,14,15,16,17,18,19,20,21,"сх",null,1,2,3,4,5,6,7,8,9,10,11,12,13,14,15,16,17,18,19,20,null,"cx",null,1,2,3,4,5,6,7,8,9,10,11,12,13,14,15,16,17,18,19,20,21,22,23,24,25,26,27,28,29,30,31,32,33,34,35,36,37,38,39,40,null,null,null,1,2,3,4,5,6,7,8,9,10,11,12,13,14,15,16,17,18,19,20,21,22,23,24,25,26,27,28,29,30,31,32,33,34,35,36,37,38,39,40,null,null,null,null,null,null,null,"мин","Н. Стро","В. стро","место",null,"чр1","чр2",null,null,"первый заезд личные очки",null,null,null,null,null,null,null,null,null,null,null,null,null,null,null,null,null,null,null,null,null,"второй заезд личные очки",null,null,null,null,null,null,null,null,null,null,null,null,null,null,null,null,null,null,null,null,null,null,"Первый заезд командные очки",null,null,null,null,null,null,null,null,null,null,null,null,null,null,null,null,null,null,null,null,null,null,"Второй заезд командные очки"]
[1,8,"СКАКУНЕН Ксения",null,"б/р","г.Санкт-Петербург",{"$f":"'50'!$G$15","v":"\"Царкосельский Технопарк\""},"Yamaha",null,null,null,null,{"$f":"J10+L10","v":0}]
[1,12,"ЛЕВШОВ Артемий",null,"б/р","г.Санкт-Петербург",{"$f":"'50'!$G$15","v":"\"Царкосельский Технопарк\""},"Yamaha",null,null,null,null,0]
[2,17,"ЛЕВШОВ Тимофей",null,"б/р","г.Санкт-Петербург",{"$f":"'50'!$G$15","v":"\"Царкосельский Технопарк\""},"Yamaha",null,null,null,null,0]
[3,19,"СЫРОМЯТНИКОВ Роман",null,"б/р","г.Псков","мотоклуб \"Поизитивная механика\"","Yamaha",null,null,null,null,0]
[4,122,"РОДИОНОВ Алексей",null,"б/р","г.Санкт-Петербург","лично","КТМ",null,null,null,null,0]
[]
[5,null,null,null,null,null,null,null,null,null,null,null,0]
[6,null,null,null,null,null,null,null,null,null,null,null,0]
[7,null,null,null,null,null,null,null,null,null,null,null,0]
[8,null,null,null,null,null,null,null,null,null,null,null,0]
[9,null,null,null,null,null,null,null,null,null,null,null,0]
[]
[10,null,null,null,null,null,null,null,null,null,null,null,0]
[]
[11,null,null,null,null,null,null,null,null,null,null,null,0]
[12,null,null,null,null,null,null,null,null,null,null,null,0]
[13,null,null,null,null,null,null,null,null,null,null,null,0]
[]
[]
[]
[]
[]
[]
[]
[]
[]
[]
[]
[]
[]
[null,"Главный судья"]
[null,"судья Третьей  категории:                                                                                Д.А.Савин (г. Санкт-Петербург, лицензия МФР тип В 1162  )                                                  "]
[null,"Главный секретарь соревнований"]
[null,"судья Первой категории:                                                                                  И.В. Гурьянова (г. Санкт-Петербург, лицнзия МФР Тип В 374)"]

{"sheet":"50","index":1,"n_rows":43,"n_cols":256,"rows_kept":43,"cut":false,"hidden":false,"merged":[[6,4,8,4],[6,1,8,1],[6,10,6,11],[6,7,8,7],[7,10,8,10],[0,13,3,13],[1,0,1,11],[3,0,3,12],[2,0,2,12],[6,13,8,13],[7,8,8,8],[6,8,6,9],[6,6,8,6],[6,12,8,12],[7,9,8,9],[4,0,4,12],[6,5,8,5],[6,0,8,0],[7,11,8,11],[6,3,8,3],[6,2,8,2]]}
[]
["Открытый Чемпионат и Первенство Крестецкого муниципального района и Крестецкого городского поселения по мотоциклетному кроссу, посвященные памяти авиаторов Северо-Западного фронта"]
["ПРОТОКОЛ  ЛИЧНОГО  ЗАЧЕТА",null,null,null,null,null,null,null,null,null,null,null,null,null,null,null,null,null,null,null,null,null,null,null,null,null,null,null,null,null,null,null,null,null,null,null,null,null,null,null,null,null,null,null,null,null,null,null,null,null,null,null,null,null,null,null,null,null,null,null,null,null,null,null,null,null,null,null,null,null,null,null,null,null,null,null,null,null,null,null,null,null,null,null,null,null,null,null,null,null,null,null,null,null,null,null,null,null,null,null,null,null,null,null,null,null,null,null,null,null,null,null,null,null,null,null,null,null,null,null,null,null,null,null,null,null,null,null,null,null,null,null,null,null,null,null,null,null,null,null,null,null,null,null,null,null,null,null,null,null,null,null,null,null,null,null,null,null,null,null,null,null,null,null,null,null,null,null,null,null,null,null,"первый этап"]
["п.Крестцы, Новгородская  область                                                                                                                       14-15 июня  2019 года.",null,null,null,null,null,null,null,null,null,null,null,null,null,null,null,null,null,null,null,null,null,null,null,null,null,null,null,null,null,null,null,null,null,null,null,null,null,null,null,null,null,null,null,null,null,null,null,null,null,null,null,null,null,null,null,null,null,null,null,null,null,null,null,null,null,null,null,null,null,null,null,null,null,null,null,null,null,null,null,null,null,null,null,null,null,null,null,null,null,null,null,null,null,null,null,null,null,null,null,null,null,null,null,null,null,null,null,null,null,null,null,null,null,null,null,null,null,null,null,null,null,null,null,null,null,null,null,null,null,null,null,null,null,null,null,null,null,null,null,null,null,null,null,null,null,null,null,null,null,null,null,null,null,null,null,null,null,null,null,null,"первый заезд личные очки",null,null,null,null,null,null,null,null,null,null,null,null,null,null,null,null,null,null,null,null,null,"второй заезд личные очки",null,null,null,null,null,null,null,null,null,null,null,null,null,null,null,null,null,null,null,null,null,null,"Первый заезд командные очки",null,null,null,null,null,null,null,null,null,null,null,null,null,null,null,null,null,null,null,null,null,null,"Второй заезд командные очки"]
["Класс 50 см3. \"мальчики\" (091 014 1 8 1 1 Н).",null,null,null,null,null,null,null,null,null,null,null,null,null,null,null,null,null,null,null,null,null,null,null,null,null,null,null,null,null,null,null,null,null,null,null,null,null,null,null,null,null,null,null,null,null,null,null,null,null,null,null,null,null,null,null,null,null,null,null,null,null,null,null,null,null,null,null,null,null,null,null,null,null,null,null,null,null,null,null,null,null,null,null,null,null,null,null,null,null,null,null,null,null,null,null,null,null,null,null,null,null,null,null,null,null,null,null,null,null,null,null,null,null,null,null,null,null,null,null,null,null,null,null,null,null,null,null,null,null,null,null,null,null,null,null,null,null,null,null,null,null,null,null,null,null,null,null,null,null,null,null,null,null,null,null,null,null,null,null,1,2,3,4,5,6,7,8,9,10,11,12,13,14,15,16,17,18,19,20,21,"сх","Sym",1,2,3,4,5,6,7,8,9,10,11,12,13,14,15,16,17,18,19,20,21,"cx","sym",1,2,3,4,5,6,7,8,9,10,11,12,13,14,15,16,17,18,19,20,21,"сх","очки",1,2,3,4,5,6,7,8,9,10,11,12,13,14,15,16,17,18,19,20,21,"сх","очки",{"$f":"COUNT(FE5:IR5)","v":84},"Н. Стро","В. стро","место"]
[]
["Место","Ст. №","Фамилия, Имя","Тип лицензии","Раз  ряд","Город (край, район, область)","Команда","Мото","I-й заезд",null,"II-й заезд",null,"Сумма очков              в личном зачете","Сумма очк. в командном зачете"]
[null,null,null,null,null,null,null,null,"место","лич. Очки.","место","лич. Очки.",null,null,null,null,null,"первый заезд личные очки",null,null,null,null,null,null,null,null,null,null,null,null,null,null,null,null,null,null,null,null,null,"второй заезд личные очки",null,null,null,null,null,null,null,null,null,null,null,null,null,null,null,null,null,null,null,null,null,null,"Первый заезд командные очки",null,null,null,null,null,null,null,null,null,null,null,null,null,null,null,null,null,null,null,null,null,null,null,null,null,null,null,null,null,null,null,null,null,null,null,null,null,null,null,null,null,null,"Второй заезд командные очки",null,null,null,null,null,null,null,null,null,null,null,null,null,null,null,null,null,null,null,null,null,null,null,null,null,null,null,null,null,null,null,null,null,null,null,null,null,null,null,null,null,null,null,1,2,null,null,null,null,null,null,null,null,null,null,null,null,null,null,null,null,null,null,null,null,null,"первый этап"]
[null,null,null,null,null,null,null,null,null,null,null,null,null,null,null,null,1,2,3,4,5,6,7,8,9,10,11,12,13,14,15,16,17,18,19,20,21,"сх",null,1,2,3,4,5,6,7,8,9,10,11,12,13,14,15,16,17,18,19,20,null,"cx",null,1,2,3,4,5,6,7,8,9,10,11,12,13,14,15,16,17,18,19,20,21,22,23,24,25,26,27,28,29,30,31,32,33,34,35,36,37,38,39,40,null,null,null,1,2,3,4,5,6,7,8,9,10,11,12,13,14,15,16,17,18,19,20,21,22,23,24,25,26,27,28,29,30,31,32,33,34,35,36,37,38,39,40,null,null,null,null,null,null,null,"мин","Н. Стро","В. стро","место",null,"чр1","чр2",null,null,"первый заезд личные очки",null,null,null,null,null,null,null,null,null,null,null,null,null,null,null,null,null,null,null,null,null,"второй заезд личные очки",null,null,null,null,null,null,null,null,null,null,null,null,null,null,null,null,null,null,null,null,null,null,"Первый заезд командные очки",null,null,null,null,null,null,null,null,null,null,null,null,null,null,null,null,null,null,null,null,null,null,"Второй заезд командные очки"]
[1,1,"СИНЕЛЬНИКОВ Егор","А2-№24001909","б/р","г.Санкт-Петербург","лично","КТМ"]
[1,2,"БЕЛОБАНОВ Семён",null,3,"г.Псков","ДОСААФ г.Псков","КТМ",null,null,null,null,{"$f":"J11+L11","v":0}]
[2,5,"АЛЕКСЕЕВ Алексей","С-№2334","б/р","г.Псков","мотоклуб \"Позитивная механика\"","КТМ",null,null,null,null,0]
[3,7,"ВАСИЛЬЕВА Анфиса","А3-№24001749","б/р","г.Санкт-Петербург","SSMX-Team","КТМ",null,null,null,null,0]
[4,9,"БЕЛКИН Вячеслав","А3-№24001765","б/р","г.Санкт-Петербург","лично","КТМ",null,null,null,null,0]
[null,12,"НИКОЛАЕВ Александр",null,"б/р","г.Санкт-Петербург",{"$f":"$G$17","v":"\"Царкосельский Технопарк\""},"КТМ"]
[5,15,"ШИГОРИН Павел",{"$f":"'65'!#REF!","v":{"$error":"#REF!"}},"б/р","г.Санкт-Петербург","Северные Стрелы","КТМ",null,null,null,null,0]
[6,17,"ДОРОГИН Стефан","А2-№24001575","б/р","г.Санкт-Петербург","\"Царкосельский Технопарк\"","КТМ",null,null,null,null,0]
[7,55,"ГИРШ Макар",null,"б/р","г.Выборг ЛО","\" Выборг Мото Фаворит\"","КТМ",null,null,null,null,0]
[8,56,"ТРОФИМОВ Макар",null,"б/р","г.Старая Русса, Новгородская обл.","лично","КТМ",null,null,null,null,0]
[9,60,"ГУСАРОВ Максим",null,"б/р","г.Торжок, Тверская обл.","лично","КТМ",null,null,null,null,0]
[null,111,"ВОЛОДИН Тимур","С-№1433","б/р","г.Петрозаводск, Карелия","Мотокросс 10 RUS","КТМ"]
[10,177,"КОМАЕДОВ Макар","А3-№000328","б/р","г.Санкт-Петербург","MX MASTER","КТМ",null,null,null,null,0]
[null,271,"НЕФЕДОВ Сергей","А3-№24001719","б/р","г.Санкт-Петербург","MX MASTER","КТМ"]
[11,328,"ОРЛОВ Фёдор","А3-№24001669","б/р","г.Санкт-Петербург","SSMX","КТМ",null,null,null,null,0]
[12,775,"ЗАВАРИН Артём","А2-№24001620","б/р","г.Санкт-Петербург","MX MASTER","КТМ",null,null,null,null,0]
[13,777,"ДМИТРИЕВ Аарон","А3-24001550","б/р","г.Санкт-Петербург","SSMX-Team","КТМ",null,null,null,null,0]
[]
[]
[]
[]
[]
[]
[]
[]
[]
[]
[]
[]
[]
[null,"Главный судья"]
[null,"судья Третьей  категории:                                                                                Д.А.Савин (г. Санкт-Петербург, лицензия МФР тип В 1162  )                                                  "]
[null,"Главный секретарь соревнований"]
[null,"судья Первой категории:                                                                                  И.В. Гурьянова (г. Санкт-Петербург, лицнзия МФР Тип В 374)"]

{"sheet":"65","index":2,"n_rows":38,"n_cols":256,"rows_kept":38,"cut":false,"hidden":false,"merged":[[6,13,8,13],[7,8,8,8],[7,9,8,9],[7,10,8,10],[7,11,8,11],[6,12,8,12],[6,5,8,5],[6,6,8,6],[6,7,8,7],[6,8,6,9],[6,10,6,11],[0,13,3,13],[1,0,1,11],[2,0,2,12],[3,0,3,12],[4,0,4,12],[6,0,8,0],[6,1,8,1],[6,2,8,2],[6,3,8,3],[6,4,8,4]]}
[]
["Первенство Новгородской области по мотокроссу, IIэтап"]
["ПРОТОКОЛ  ЛИЧНОГО  ЗАЧЕТА",null,null,null,null,null,null,null,null,null,null,null,null,null,null,null,null,null,null,null,null,null,null,null,null,null,null,null,null,null,null,null,null,null,null,null,null,null,null,null,null,null,null,null,null,null,null,null,null,null,null,null,null,null,null,null,null,null,null,null,null,null,null,null,null,null,null,null,null,null,null,null,null,null,null,null,null,null,null,null,null,null,null,null,null,null,null,null,null,null,null,null,null,null,null,null,null,null,null,null,null,null,null,null,null,null,null,null,null,null,null,null,null,null,null,null,null,null,null,null,null,null,null,null,null,null,null,null,null,null,null,null,null,null,null,null,null,null,null,null,null,null,null,null,null,null,null,null,null,null,null,null,null,null,null,null,null,null,null,null,null,null,null,null,null,null,null,null,null,null,null,null,"первый этап"]
["п.Крестцы, Новгородская  область                                                                                                                       14-15 июня  2019 года.",null,null,null,null,null,null,null,null,null,null,null,null,null,null,null,null,null,null,null,null,null,null,null,null,null,null,null,null,null,null,null,null,null,null,null,null,null,null,null,null,null,null,null,null,null,null,null,null,null,null,null,null,null,null,null,null,null,null,null,null,null,null,null,null,null,null,null,null,null,null,null,null,null,null,null,null,null,null,null,null,null,null,null,null,null,null,null,null,null,null,null,null,null,null,null,null,null,null,null,null,null,null,null,null,null,null,null,null,null,null,null,null,null,null,null,null,null,null,null,null,null,null,null,null,null,null,null,null,null,null,null,null,null,null,null,null,null,null,null,null,null,null,null,null,null,null,null,null,null,null,null,null,null,null,null,null,null,null,null,null,"первый заезд личные очки",null,null,null,null,null,null,null,null,null,null,null,null,null,null,null,null,null,null,null,null,null,"второй заезд личные очки",null,null,null,null,null,null,null,null,null,null,null,null,null,null,null,null,null,null,null,null,null,null,"Первый заезд командные очки",null,null,null,null,null,null,null,null,null,null,null,null,null,null,null,null,null,null,null,null,null,null,"Второй заезд командные очки"]
["Класс 65 см3. \"мальчики\" (091 014 1 8 1 1 Н).",null,null,null,null,null,null,null,null,null,null,null,null,null,null,null,null,null,null,null,null,null,null,null,null,null,null,null,null,null,null,null,null,null,null,null,null,null,null,null,null,null,null,null,null,null,null,null,null,null,null,null,null,null,null,null,null,null,null,null,null,null,null,null,null,null,null,null,null,null,null,null,null,null,null,null,null,null,null,null,null,null,null,null,null,null,null,null,null,null,null,null,null,null,null,null,null,null,null,null,null,null,null,null,null,null,null,null,null,null,null,null,null,null,null,null,null,null,null,null,null,null,null,null,null,null,null,null,null,null,null,null,null,null,null,null,null,null,null,null,null,null,null,null,null,null,null,null,null,null,null,null,null,null,null,null,null,null,null,null,1,2,3,4,5,6,7,8,9,10,11,12,13,14,15,16,17,18,19,20,21,"сх","Sym",1,2,3,4,5,6,7,8,9,10,11,12,13,14,15,16,17,18,19,20,21,"cx","sym",1,2,3,4,5,6,7,8,9,10,11,12,13,14,15,16,17,18,19,20,21,"сх","очки",1,2,3,4,5,6,7,8,9,10,11,12,13,14,15,16,17,18,19,20,21,"сх","очки",{"$f":"COUNT(FE5:IR5)","v":84},"Н. Стро","В. стро","место"]
[]
["Место","Ст. №","Фамилия, Имя","Тип лицензии","Раз  ряд","Город (край, район, область)","Команда","Мото","I-й заезд",null,"II-й заезд",null,"Сумма очков              в личном зачете","Сумма очк. в командном зачете"]
[null,null,null,null,null,null,null,null,"место","лич. Очки.","место","лич. Очки.",null,null,null,null,null,"первый заезд личные очки",null,null,null,null,null,null,null,null,null,null,null,null,null,null,null,null,null,null,null,null,null,"второй заезд личные очки",null,null,null,null,null,null,null,null,null,null,null,null,null,null,null,null,null,null,null,null,null,null,"Первый заезд командные очки",null,null,null,null,null,null,null,null,null,null,null,null,null,null,null,null,null,null,null,null,null,null,null,null,null,null,null,null,null,null,null,null,null,null,null,null,null,null,null,null,null,null,"Второй заезд командные очки",null,null,null,null,null,null,null,null,null,null,null,null,null,null,null,null,null,null,null,null,null,null,null,null,null,null,null,null,null,null,null,null,null,null,null,null,null,null,null,null,null,null,null,1,2,null,null,null,null,null,null,null,null,null,null,null,null,null,null,null,null,null,null,null,null,null,"первый этап"]
[null,null,null,null,null,null,null,null,null,null,null,null,null,null,null,null,1,2,3,4,5,6,7,8,9,10,11,12,13,14,15,16,17,18,19,20,21,"сх",null,1,2,3,4,5,6,7,8,9,10,11,12,13,14,15,16,17,18,19,20,null,"cx",null,1,2,3,4,5,6,7,8,9,10,11,12,13,14,15,16,17,18,19,20,21,22,23,24,25,26,27,28,29,30,31,32,33,34,35,36,37,38,39,40,null,null,null,1,2,3,4,5,6,7,8,9,10,11,12,13,14,15,16,17,18,19,20,21,22,23,24,25,26,27,28,29,30,31,32,33,34,35,36,37,38,39,40,null,null,null,null,null,null,null,"мин","Н. Стро","В. стро","место",null,"чр1","чр2",null,null,"первый заезд личные очки",null,null,null,null,null,null,null,null,null,null,null,null,null,null,null,null,null,null,null,null,null,"второй заезд личные очки",null,null,null,null,null,null,null,null,null,null,null,null,null,null,null,null,null,null,null,null,null,null,"Первый заезд командные очки",null,null,null,null,null,null,null,null,null,null,null,null,null,null,null,null,null,null,null,null,null,null,"Второй заезд командные очки"]
[1,691,"ФРИДЛЕНДЕР Александр","FIM №999200161","б/р","г.Кобрин, Брестская обл.,Беларусь","Кобрин ДОСААФ","КТМ",1,45,1,45,{"$f":"J10+L10","v":90}]
[2,765,"РЕЗЯПКИН Александр","А3-№24001598","б/р","г.Санкт-Петербург","Zorin MX","КТМ",2,42,2,42,84]
[3,761,"МИХАЙЛОВ Данил","А3-№24001818","б/р","г.Великие Луки,Псковская обл.","ДОСААФ В.Луки","ктм",4,38,3,40,78]
[4,616,"КЛЮШКИН Иван","А-№000080","б/р","г.Санкт-Петербург","ДОСААФ Мототрек","КТМ",3,40,5,36,76]
[5,99,"ЧУДИНОВИЧ Вячеслав","А3-№24001756","б/р","г.Санкт-Петербург","ГДТЮ \"Baltic Race\"","Kawasaki",7,34,4,38,72]
[6,33,"ВИННИЧЕНКО Демьян","А3-№24001699","б/р","г.Коммунар,ЛО","лично","КТМ",6,35,6,35,70]
[7,812,"КАРГИН Климентий","А3-№000327","б/р","г.Санкт-Петербург","Zorin MX","КТМ",5,36,8,33,69]
[8,696,"ТАРАСОВА Виктория","С-№2574",3,"г.Выборг, ЛО","СТК ДОСААФ г.Выборг","КТМ",10,31,7,34,65]
[9,949,"АНТОНОВ Кирилл","А3-№24001155","б/р","г.Санкт-Петербург","ГДТЮ \"Baltic Race\"","Husqwarna",8,33,9,32,65]
[10,46,"ПИВАНОВ Михаил","С-№2884","б/р","г.Кировск, Мурманская обл.","\"Мото-Хибины\"","КТМ",9,32,10,31,63]
[11,500,"КАЧНОВ Артём","А3-№24001808","б/р","г.Великие Луки,Псковская обл.","ДОСААФ В.Луки","КТМ",11,30,11,30,60]
[12,73,"КУКСОВ Никита","№000505","б/р","г.Великий Новгород","лично","КТМ",12,29,12,29,58]
[]
[]
[]
[]
[]
[]
[]
[]
[]
[]
[]
[]
[]
[null,"Главный судья"]
[null,"судья Третьей  категории:                                                                                Д.А.Савин (г. Санкт-Петербург, лицензия МФР тип В 1162  )                                                  "]
[null,"Главный секретарь соревнований"]
[null,"судья Первой категории:                                                                                  И.В. Гурьянова (г. Санкт-Петербург, лицнзия МФР Тип В 374)"]

{"sheet":"85","index":3,"n_rows":47,"n_cols":256,"rows_kept":47,"cut":false,"hidden":false,"merged":[[6,3,8,3],[6,6,8,6],[7,11,8,11],[6,7,8,7],[7,8,8,8],[0,13,3,13],[1,0,1,11],[3,0,3,12],[2,0,2,12],[6,4,8,4],[7,9,8,9],[6,2,8,2],[6,12,8,12],[6,5,8,5],[4,0,4,12],[6,0,8,0],[6,10,6,11],[6,8,6,9],[6,1,8,1],[6,13,8,13],[7,10,8,10]]}
[]
["Первенство Новгородской области по мотокроссу, IIэтап"]
["ПРОТОКОЛ  ЛИЧНОГО  ЗАЧЕТА",null,null,null,null,null,null,null,null,null,null,null,null,null,null,null,null,null,null,null,null,null,null,null,null,null,null,null,null,null,null,null,null,null,null,null,null,null,null,null,null,null,null,null,null,null,null,null,null,null,null,null,null,null,null,null,null,null,null,null,null,null,null,null,null,null,null,null,null,null,null,null,null,null,null,null,null,null,null,null,null,null,null,null,null,null,null,null,null,null,null,null,null,null,null,null,null,null,null,null,null,null,null,null,null,null,null,null,null,null,null,null,null,null,null,null,null,null,null,null,null,null,null,null,null,null,null,null,null,null,null,null,null,null,null,null,null,null,null,null,null,null,null,null,null,null,null,null,null,null,null,null,null,null,null,null,null,null,null,null,null,null,null,null,null,null,null,null,null,null,null,null,"первый этап"]
["п.Крестцы, Новгородская  область                                                                                                                       14-15 июня  2019 года.",null,null,null,null,null,null,null,null,null,null,null,null,null,null,null,null,null,null,null,null,null,null,null,null,null,null,null,null,null,null,null,null,null,null,null,null,null,null,null,null,null,null,null,null,null,null,null,null,null,null,null,null,null,null,null,null,null,null,null,null,null,null,null,null,null,null,null,null,null,null,null,null,null,null,null,null,null,null,null,null,null,null,null,null,null,null,null,null,null,null,null,null,null,null,null,null,null,null,null,null,null,null,null,null,null,null,null,null,null,null,null,null,null,null,null,null,null,null,null,null,null,null,null,null,null,null,null,null,null,null,null,null,null,null,null,null,null,null,null,null,null,null,null,null,null,null,null,null,null,null,null,null,null,null,null,null,null,null,null,null,"первый заезд личные очки",null,null,null,null,null,null,null,null,null,null,null,null,null,null,null,null,null,null,null,null,null,"второй заезд личные очки",null,null,null,null,null,null,null,null,null,null,null,null,null,null,null,null,null,null,null,null,null,null,"Первый заезд командные очки",null,null,null,null,null,null,null,null,null,null,null,null,null,null,null,null,null,null,null,null,null,null,"Второй заезд командные очки"]
["Класс 85 см3. \"мальчики\" (091 014 1 8 1 1 Н).",null,null,null,null,null,null,null,null,null,null,null,null,null,null,null,null,null,null,null,null,null,null,null,null,null,null,null,null,null,null,null,null,null,null,null,null,null,null,null,null,null,null,null,null,null,null,null,null,null,null,null,null,null,null,null,null,null,null,null,null,null,null,null,null,null,null,null,null,null,null,null,null,null,null,null,null,null,null,null,null,null,null,null,null,null,null,null,null,null,null,null,null,null,null,null,null,null,null,null,null,null,null,null,null,null,null,null,null,null,null,null,null,null,null,null,null,null,null,null,null,null,null,null,null,null,null,null,null,null,null,null,null,null,null,null,null,null,null,null,null,null,null,null,null,null,null,null,null,null,null,null,null,null,null,null,null,null,null,null,1,2,3,4,5,6,7,8,9,10,11,12,13,14,15,16,17,18,19,20,21,"сх","Sym",1,2,3,4,5,6,7,8,9,10,11,12,13,14,15,16,17,18,19,20,21,"cx","sym",1,2,3,4,5,6,7,8,9,10,11,12,13,14,15,16,17,18,19,20,21,"сх","очки",1,2,3,4,5,6,7,8,9,10,11,12,13,14,15,16,17,18,19,20,21,"сх","очки",{"$f":"COUNT(FE5:IR5)","v":84},"Н. Стро","В. стро","место"]
[]
["Место","Ст. №","Фамилия, Имя","Тип лицензии","Раз  ряд","Город (край, район, область)","Команда","Мото","I-й заезд",null,"II-й заезд",null,"Сумма очков              в личном зачете","Сумма очк. в командном зачете"]
[null,null,null,null,null,null,null,null,"место","лич. Очки.","место","лич. Очки.",null,null,null,null,null,"первый заезд личные очки",null,null,null,null,null,null,null,null,null,null,null,null,null,null,null,null,null,null,null,null,null,"второй заезд личные очки",null,null,null,null,null,null,null,null,null,null,null,null,null,null,null,null,null,null,null,null,null,null,"Первый заезд командные очки",null,null,null,null,null,null,null,null,null,null,null,null,null,null,null,null,null,null,null,null,null,null,null,null,null,null,null,null,null,null,null,null,null,null,null,null,null,null,null,null,null,null,"Второй заезд командные очки",null,null,null,null,null,null,null,null,null,null,null,null,null,null,null,null,null,null,null,null,null,null,null,null,null,null,null,null,null,null,null,null,null,null,null,null,null,null,null,null,null,null,null,1,2,null,null,null,null,null,null,null,null,null,null,null,null,null,null,null,null,null,null,null,null,null,"первый этап"]
[null,null,null,null,null,null,null,null,null,null,null,null,null,null,null,null,1,2,3,4,5,6,7,8,9,10,11,12,13,14,15,16,17,18,19,20,21,"сх",null,1,2,3,4,5,6,7,8,9,10,11,12,13,14,15,16,17,18,19,20,null,"cx",null,1,2,3,4,5,6,7,8,9,10,11,12,13,14,15,16,17,18,19,20,21,22,23,24,25,26,27,28,29,30,31,32,33,34,35,36,37,38,39,40,null,null,null,1,2,3,4,5,6,7,8,9,10,11,12,13,14,15,16,17,18,19,20,21,22,23,24,25,26,27,28,29,30,31,32,33,34,35,36,37,38,39,40,null,null,null,null,null,null,null,"мин","Н. Стро","В. стро","место",null,"чр1","чр2",null,null,"первый заезд личные очки",null,null,null,null,null,null,null,null,null,null,null,null,null,null,null,null,null,null,null,null,null,"второй заезд личные очки",null,null,null,null,null,null,null,null,null,null,null,null,null,null,null,null,null,null,null,null,null,null,"Первый заезд командные очки",null,null,null,null,null,null,null,null,null,null,null,null,null,null,null,null,null,null,null,null,null,null,"Второй заезд командные очки"]
[1,772,"АНТОНОВ Глеб","А2-№000506",1,"г.Боровичи, Новгородская обл.","Сам себе МХ","Huswarna",1,45,1,45,{"$f":"J10+L10","v":90}]
[2,757,"ОРЕШКИН Елисей","А2-№000217",1,"г.Каменск Уральский","ЦВТС г.Каменск Уральский","КТМ",2,42,2,42,84]
[3,758,"УЛЬЯНОВ Максим","А2-№24000724","б/р","г.Санкт-Петербург","лично","КТМ",3,40,3,40,80]
[4,94,"ГАНИН Матвей","А2-№24001828","б/р","г.Каменск Уральский","Viktorov Off Road","КТМ",4,38,4,38,76]
[5,19,"КОШЕЛЕВ Никита","А2-№000573","б/р","г.Выборг, ЛО","лично","КТМ",5,36,6,35,71]
[6,736,"ТАРАСОВ Степан","С-№2623",3,"г.Выборг, ЛО","СТК ДОСААФ Выборг","КТМ",7,34,5,36,70]
[7,725,"ЮДИН Егор","А2-№000196",1,"г.Валдай","ДОСААФ г.Валдай","Huswarna",6,35,7,34,69]
[8,989,"АНТОНОВ Тимофей","А2-№24001754","б/р","г.Санкт-Петербург","ГДТЮ \"Baltic Race\"","Huswarna",8,33,8,33,66]
[9,212,"РУСАКОВ Глеб","А3-№24001810","б/р","г. Великие Луки,Псковская обл.","ДОСААФ В.Луки","Suzuki",9,32,9,32,64]
[10,41,"ДАНИЛОВ Семён","С-№1013",1,"г.Великий Новгород","ДОСААФ В.Новгород","КТМ",10,31,10,31,62]
[11,23,"СЕМЁНОВ Иван","А2-№24001838","б/р","г.Санкт-Петербург","Viktorov Off Road","КТМ",12,29,11,30,59]
[12,2,"КУЗЬМИН Никита","С-№1435","б/р","г.Петрозаводск, Карелия","Мотокросс 10 RUS","Huswarna",13,28,12,29,57]
[13,11,"НИКИТИН Александр","А2-№000332","б/р","г.Великий Новгород","ДОСААФ В.Новгород","КТМ",14,27,13,28,55]
[14,75,"КОЗЛОВ Евгений","А2-№000508","б/р","г.Кириши, ЛО","МК \" Кинеф\"","КТМ",11,30,"сх",0,30]
[15,688,"ТАРАСОВ Александр","А2-№000319","б/р","г.Санкт-Петербург","Viktorov Off Road","Huswarna","сх",0,"нс","-",0]
[]
[]
[]
[]
[]
[]
[]
[]
[]
[]
[]
[]
[]
[]
[]
[]
[]
[]
[]
[null,"Главный судья"]
[null,"судья Третьей  категории:                                                                                Д.А.Савин (г. Санкт-Петербург, лицензия МФР тип В 1162  )                                                  "]
[null,"Главный секретарь соревнований"]
[null,"судья Первой категории:                                                                                  И.В. Гурьянова (г. Санкт-Петербург, лицнзия МФР Тип В 374)"]

{"sheet":"125 Юноши","index":4,"n_rows":20,"n_cols":256,"rows_kept":20,"cut":false,"hidden":false,"merged":[[7,10,8,10],[6,13,8,13],[6,10,6,11],[6,12,8,12],[6,7,8,7],[6,1,8,1],[6,3,8,3],[6,0,8,0],[0,13,3,13],[1,0,1,11],[3,0,3,12],[2,0,2,12],[4,0,4,12],[6,8,6,9],[6,2,8,2],[6,4,8,4],[7,8,8,8],[7,11,8,11],[6,6,8,6],[6,5,8,5],[7,9,8,9]]}
[]
["Первенство Новгородской области по мотокроссу, IIэтап"]
["ПРОТОКОЛ  ЛИЧНОГО  ЗАЧЕТА",null,null,null,null,null,null,null,null,null,null,null,null,null,null,null,null,null,null,null,null,null,null,null,null,null,null,null,null,null,null,null,null,null,null,null,null,null,null,null,null,null,null,null,null,null,null,null,null,null,null,null,null,null,null,null,null,null,null,null,null,null,null,null,null,null,null,null,null,null,null,null,null,null,null,null,null,null,null,null,null,null,null,null,null,null,null,null,null,null,null,null,null,null,null,null,null,null,null,null,null,null,null,null,null,null,null,null,null,null,null,null,null,null,null,null,null,null,null,null,null,null,null,null,null,null,null,null,null,null,null,null,null,null,null,null,null,null,null,null,null,null,null,null,null,null,null,null,null,null,null,null,null,null,null,null,null,null,null,null,null,null,null,null,null,null,null,null,null,null,null,null,"первый этап"]
["п.Крестцы, Новгородская  область                                                                                                                       14-15 июня  2019 года.",null,null,null,null,null,null,null,null,null,null,null,null,null,null,null,null,null,null,null,null,null,null,null,null,null,null,null,null,null,null,null,null,null,null,null,null,null,null,null,null,null,null,null,null,null,null,null,null,null,null,null,null,null,null,null,null,null,null,null,null,null,null,null,null,null,null,null,null,null,null,null,null,null,null,null,null,null,null,null,null,null,null,null,null,null,null,null,null,null,null,null,null,null,null,null,null,null,null,null,null,null,null,null,null,null,null,null,null,null,null,null,null,null,null,null,null,null,null,null,null,null,null,null,null,null,null,null,null,null,null,null,null,null,null,null,null,null,null,null,null,null,null,null,null,null,null,null,null,null,null,null,null,null,null,null,null,null,null,null,null,"первый заезд личные очки",null,null,null,null,null,null,null,null,null,null,null,null,null,null,null,null,null,null,null,null,null,"второй заезд личные очки",null,null,null,null,null,null,null,null,null,null,null,null,null,null,null,null,null,null,null,null,null,null,"Первый заезд командные очки",null,null,null,null,null,null,null,null,null,null,null,null,null,null,null,null,null,null,null,null,null,null,"Второй заезд командные очки"]
["Класс 125 см3 2Т \" Юноши\" (0910151811Н).",null,null,null,null,null,null,null,null,null,null,null,null,null,null,null,null,null,null,null,null,null,null,null,null,null,null,null,null,null,null,null,null,null,null,null,null,null,null,null,null,null,null,null,null,null,null,null,null,null,null,null,null,null,null,null,null,null,null,null,null,null,null,null,null,null,null,null,null,null,null,null,null,null,null,null,null,null,null,null,null,null,null,null,null,null,null,null,null,null,null,null,null,null,null,null,null,null,null,null,null,null,null,null,null,null,null,null,null,null,null,null,null,null,null,null,null,null,null,null,null,null,null,null,null,null,null,null,null,null,null,null,null,null,null,null,null,null,null,null,null,null,null,null,null,null,null,null,null,null,null,null,null,null,null,null,null,null,null,null,1,2,3,4,5,6,7,8,9,10,11,12,13,14,15,16,17,18,19,20,21,"сх","Sym",1,2,3,4,5,6,7,8,9,10,11,12,13,14,15,16,17,18,19,20,21,"cx","sym",1,2,3,4,5,6,7,8,9,10,11,12,13,14,15,16,17,18,19,20,21,"сх","очки",1,2,3,4,5,6,7,8,9,10,11,12,13,14,15,16,17,18,19,20,21,"сх","очки",{"$f":"COUNT(FE5:IR5)","v":84},"Н. Стро","В. стро","место"]
[]
["Место","Ст. №","Фамилия, Имя","Тип лицензии","Раз  ряд","Город (край, район, область)","Команда","Мото","I-й заезд",null,"II-й заезд",null,"Сумма очков              в личном зачете","Сумма очк. в командном зачете"]
[null,null,null,null,null,null,null,null,"место","лич. Очки.","место","лич. Очки.",null,null,null,null,null,"первый заезд личные очки",null,null,null,null,null,null,null,null,null,null,null,null,null,null,null,null,null,null,null,null,null,"второй заезд личные очки",null,null,null,null,null,null,null,null,null,null,null,null,null,null,null,null,null,null,null,null,null,null,"Первый заезд командные очки",null,null,null,null,null,null,null,null,null,null,null,null,null,null,null,null,null,null,null,null,null,null,null,null,null,null,null,null,null,null,null,null,null,null,null,null,null,null,null,null,null,null,"Второй заезд командные очки",null,null,null,null,null,null,null,null,null,null,null,null,null,null,null,null,null,null,null,null,null,null,null,null,null,null,null,null,null,null,null,null,null,null,null,null,null,null,null,null,null,null,null,1,2,null,null,null,null,null,null,null,null,null,null,null,null,null,null,null,null,null,null,null,null,null,"первый этап"]
[null,null,null,null,null,null,null,null,null,null,null,null,null,null,null,null,1,2,3,4,5,6,7,8,9,10,11,12,13,14,15,16,17,18,19,20,21,"сх",null,1,2,3,4,5,6,7,8,9,10,11,12,13,14,15,16,17,18,19,20,null,"cx",null,1,2,3,4,5,6,7,8,9,10,11,12,13,14,15,16,17,18,19,20,21,22,23,24,25,26,27,28,29,30,31,32,33,34,35,36,37,38,39,40,null,null,null,1,2,3,4,5,6,7,8,9,10,11,12,13,14,15,16,17,18,19,20,21,22,23,24,25,26,27,28,29,30,31,32,33,34,35,36,37,38,39,40,null,null,null,null,null,null,null,"мин","Н. Стро","В. стро","место",null,"чр1","чр2",null,null,"первый заезд личные очки",null,null,null,null,null,null,null,null,null,null,null,null,null,null,null,null,null,null,null,null,null,"второй заезд личные очки",null,null,null,null,null,null,null,null,null,null,null,null,null,null,null,null,null,null,null,null,null,null,"Первый заезд командные очки",null,null,null,null,null,null,null,null,null,null,null,null,null,null,null,null,null,null,null,null,null,null,"Второй заезд командные очки"]
[1,343,"ВОРОНКОВ Вениамин","А1-№000076","кмс","г.Санкт-Петербург","Viktorov Off Road","КТМ",1,45,1,45,{"$f":"J10+L10","v":90}]
[2,773,"МОСИН Эрик","А2-№24001729",3,"г.Санкт-Петербург","лично","Huswarna",2,42,2,42,{"$f":"J11+L11","v":84}]
[3,7,"РАУСОВ Артемий","А1-№24001813","б/р","г.Санкт-Петербург","лично","КТМ",3,40,3,40,80]
[4,799,"ТАРАСОВ Сергей","А1-№000318","б/р","г.Санкт-Петербург","Viktorov Off Road","Huswarna",5,36,4,38,74]
[5,741,"ПОЛЯКОВ Алексей","С-№1023","б/р","г.Санкт-Петербург","ГДТЮ \"Baltic Race\"","КТМ",4,38,5,36,74]
[]
[]
[null,"Главный судья"]
[null,"судья Третьей  категории:                                                                                Д.А.Савин (г. Санкт-Петербург, лицензия МФР тип В 1162  )                                                  "]
[null,"Главный секретарь соревнований"]
[null,"судья Первой категории:                                                                                  И.В. Гурьянова (г. Санкт-Петербург, лицнзия МФР Тип В 374)"]

{"sheet":"125 муж","index":5,"n_rows":24,"n_cols":256,"rows_kept":24,"cut":false,"hidden":false,"merged":[[6,1,8,1],[7,9,8,9],[6,3,8,3],[6,4,8,4],[6,7,8,7],[0,13,3,13],[1,0,1,11],[3,0,3,12],[2,0,2,12],[6,12,8,12],[7,8,8,8],[6,5,8,5],[6,0,8,0],[6,6,8,6],[7,11,8,11],[6,13,8,13],[7,10,8,10],[6,2,8,2],[4,0,4,12],[6,10,6,11],[6,8,6,9]]}
[]
["Чемпионат Новгородской области по мотокроссу, IIэтап"]
["ПРОТОКОЛ  ЛИЧНОГО  ЗАЧЕТА",null,null,null,null,null,null,null,null,null,null,null,null,null,null,null,null,null,null,null,null,null,null,null,null,null,null,null,null,null,null,null,null,null,null,null,null,null,null,null,null,null,null,null,null,null,null,null,null,null,null,null,null,null,null,null,null,null,null,null,null,null,null,null,null,null,null,null,null,null,null,null,null,null,null,null,null,null,null,null,null,null,null,null,null,null,null,null,null,null,null,null,null,null,null,null,null,null,null,null,null,null,null,null,null,null,null,null,null,null,null,null,null,null,null,null,null,null,null,null,null,null,null,null,null,null,null,null,null,null,null,null,null,null,null,null,null,null,null,null,null,null,null,null,null,null,null,null,null,null,null,null,null,null,null,null,null,null,null,null,null,null,null,null,null,null,null,null,null,null,null,null,"первый этап"]
["п.Крестцы, Новгородская  область                                                                                                                       14-15 июня  2019 года.",null,null,null,null,null,null,null,null,null,null,null,null,null,null,null,null,null,null,null,null,null,null,null,null,null,null,null,null,null,null,null,null,null,null,null,null,null,null,null,null,null,null,null,null,null,null,null,null,null,null,null,null,null,null,null,null,null,null,null,null,null,null,null,null,null,null,null,null,null,null,null,null,null,null,null,null,null,null,null,null,null,null,null,null,null,null,null,null,null,null,null,null,null,null,null,null,null,null,null,null,null,null,null,null,null,null,null,null,null,null,null,null,null,null,null,null,null,null,null,null,null,null,null,null,null,null,null,null,null,null,null,null,null,null,null,null,null,null,null,null,null,null,null,null,null,null,null,null,null,null,null,null,null,null,null,null,null,null,null,null,"первый заезд личные очки",null,null,null,null,null,null,null,null,null,null,null,null,null,null,null,null,null,null,null,null,null,"второй заезд личные очки",null,null,null,null,null,null,null,null,null,null,null,null,null,null,null,null,null,null,null,null,null,null,"Первый заезд командные очки",null,null,null,null,null,null,null,null,null,null,null,null,null,null,null,null,null,null,null,null,null,null,"Второй заезд командные очки"]
["Класс  \"125 см3 \" Мужчины\" (0910161811Г).",null,null,null,null,null,null,null,null,null,null,null,null,null,null,null,null,null,null,null,null,null,null,null,null,null,null,null,null,null,null,null,null,null,null,null,null,null,null,null,null,null,null,null,null,null,null,null,null,null,null,null,null,null,null,null,null,null,null,null,null,null,null,null,null,null,null,null,null,null,null,null,null,null,null,null,null,null,null,null,null,null,null,null,null,null,null,null,null,null,null,null,null,null,null,null,null,null,null,null,null,null,null,null,null,null,null,null,null,null,null,null,null,null,null,null,null,null,null,null,null,null,null,null,null,null,null,null,null,null,null,null,null,null,null,null,null,null,null,null,null,null,null,null,null,null,null,null,null,null,null,null,null,null,null,null,null,null,null,null,1,2,3,4,5,6,7,8,9,10,11,12,13,14,15,16,17,18,19,20,21,"сх","Sym",1,2,3,4,5,6,7,8,9,10,11,12,13,14,15,16,17,18,19,20,21,"cx","sym",1,2,3,4,5,6,7,8,9,10,11,12,13,14,15,16,17,18,19,20,21,"сх","очки",1,2,3,4,5,6,7,8,9,10,11,12,13,14,15,16,17,18,19,20,21,"сх","очки",{"$f":"COUNT(FE5:IR5)","v":84},"Н. Стро","В. стро","место"]
[]
["Место","Ст. №","Фамилия, Имя","Тип лицензии","Раз  ряд","Город (край, район, область)","Команда","Мото","I-й заезд",null,"II-й заезд",null,"Сумма очков              в личном зачете","Сумма очк. в командном зачете"]
[null,null,null,null,null,null,null,null,"место","лич. Очки.","место","лич. Очки.",null,null,null,null,null,"первый заезд личные очки",null,null,null,null,null,null,null,null,null,null,null,null,null,null,null,null,null,null,null,null,null,"второй заезд личные очки",null,null,null,null,null,null,null,null,null,null,null,null,null,null,null,null,null,null,null,null,null,null,"Первый заезд командные очки",null,null,null,null,null,null,null,null,null,null,null,null,null,null,null,null,null,null,null,null,null,null,null,null,null,null,null,null,null,null,null,null,null,null,null,null,null,null,null,null,null,null,"Второй заезд командные очки",null,null,null,null,null,null,null,null,null,null,null,null,null,null,null,null,null,null,null,null,null,null,null,null,null,null,null,null,null,null,null,null,null,null,null,null,null,null,null,null,null,null,null,1,2,null,null,null,null,null,null,null,null,null,null,null,null,null,null,null,null,null,null,null,null,null,"первый этап"]
[null,null,null,null,null,null,null,null,null,null,null,null,null,null,null,null,1,2,3,4,5,6,7,8,9,10,11,12,13,14,15,16,17,18,19,20,21,"сх",null,1,2,3,4,5,6,7,8,9,10,11,12,13,14,15,16,17,18,19,20,null,"cx",null,1,2,3,4,5,6,7,8,9,10,11,12,13,14,15,16,17,18,19,20,21,22,23,24,25,26,27,28,29,30,31,32,33,34,35,36,37,38,39,40,null,null,null,1,2,3,4,5,6,7,8,9,10,11,12,13,14,15,16,17,18,19,20,21,22,23,24,25,26,27,28,29,30,31,32,33,34,35,36,37,38,39,40,null,null,null,null,null,null,null,"мин","Н. Стро","В. стро","место",null,"чр1","чр2",null,null,"первый заезд личные очки",null,null,null,null,null,null,null,null,null,null,null,null,null,null,null,null,null,null,null,null,null,"второй заезд личные очки",null,null,null,null,null,null,null,null,null,null,null,null,null,null,null,null,null,null,null,null,null,null,"Первый заезд командные очки",null,null,null,null,null,null,null,null,null,null,null,null,null,null,null,null,null,null,null,null,null,null,"Второй заезд командные очки"]
[1,728,"БОГДАНОВ Сергей","А1-№000509",1,"г.Борович, Новгородская обл.","Сам Себе МХ ","Kawasaki",2,42,1,45,{"$f":"J10+L10","v":87}]
[2,91,"ЛЕОНТЬЕВ Василий","А1-№000002","б/р","г.Санкт-Петербург","Viktorov Off Road","Yamaha",1,45,2,42,87]
[3,94,"НЕВОДНИК Федор","С-№002303","б/р","г.Санкт-Петербург","SSMX ","Suzuki",3,40,3,40,80]
[4,754,"МЕЛЬНИК Артур","А1-№24001759","б/р","г.Санкт-Петербург","лично","КТМ",4,38,4,38,76]
[5,707,"ФИРСОВ Борис","А1-№24001736","б/р","г.Санкт-Петербург","лично","КТМ",5,36,5,36,72]
[6,81,"КОСТЮХИН Александр","С-№1017","б/р","г.Борович, Новгородская обл.","Сам себе МХ team","Honda",7,34,6,35,69]
[7,722,"ГОРЯЧЕВСКИЙ Даниил","А1-№000519","б/р","г.Мончегорск, Мурманская обл.","Viktorov Off Road","КТМ",6,35,7,34,69]
[8,44,"АРТЕМЬЕВ Михаил","С-№2886","б/р","г.Кировск, Мурманская обл.","\"Мото-Хибины\"","Kawasaki",8,33,8,33,66]
[9,252,"ИВАШКЕВИЧ Павел","разовая","б/р","г.Санкт-Петербург","MX Master","КТМ",9,32,9,32,64]
[10,461,"НЕСТЕРОВ Георгий","С-№002296","б/р","г.Санкт-Петербург","ГДТЮ \"Baltic Race\"","КТМ",10,31,10,31,62]
[]
[null,"Главный судья"]
[null,"судья Третьей  категории:                                                                                Д.А.Савин (г. Санкт-Петербург, лицензия МФР тип В 1162  )                                                  "]
[null,"Главный секретарь соревнований"]
[null,"судья Первой категории:                                                                                  И.В. Гурьянова (г. Санкт-Петербург, лицнзия МФР Тип В 374)"]

{"sheet":"MX Открытый","index":6,"n_rows":20,"n_cols":256,"rows_kept":20,"cut":false,"hidden":false,"merged":[[6,10,6,11],[6,12,8,12],[6,5,8,5],[7,9,8,9],[6,6,8,6],[0,13,3,13],[1,0,1,11],[2,0,2,12],[3,0,3,12],[6,13,8,13],[7,8,8,8],[7,10,8,10],[6,8,6,9],[7,11,8,11],[4,0,4,12],[6,0,8,0],[6,1,8,1],[6,4,8,4],[6,2,8,2],[6,7,8,7],[6,3,8,3]]}
[]
["Чемпионат Новгородской области по мотокроссу, IIэтап"]
["ПРОТОКОЛ  ЛИЧНОГО  ЗАЧЕТА",null,null,null,null,null,null,null,null,null,null,null,null,null,null,null,null,null,null,null,null,null,null,null,null,null,null,null,null,null,null,null,null,null,null,null,null,null,null,null,null,null,null,null,null,null,null,null,null,null,null,null,null,null,null,null,null,null,null,null,null,null,null,null,null,null,null,null,null,null,null,null,null,null,null,null,null,null,null,null,null,null,null,null,null,null,null,null,null,null,null,null,null,null,null,null,null,null,null,null,null,null,null,null,null,null,null,null,null,null,null,null,null,null,null,null,null,null,null,null,null,null,null,null,null,null,null,null,null,null,null,null,null,null,null,null,null,null,null,null,null,null,null,null,null,null,null,null,null,null,null,null,null,null,null,null,null,null,null,null,null,null,null,null,null,null,null,null,null,null,null,null,"первый этап"]
["п.Крестцы, Новгородская  область                                                                                                                       14-15 июня  2019 года.",null,null,null,null,null,null,null,null,null,null,null,null,null,null,null,null,null,null,null,null,null,null,null,null,null,null,null,null,null,null,null,null,null,null,null,null,null,null,null,null,null,null,null,null,null,null,null,null,null,null,null,null,null,null,null,null,null,null,null,null,null,null,null,null,null,null,null,null,null,null,null,null,null,null,null,null,null,null,null,null,null,null,null,null,null,null,null,null,null,null,null,null,null,null,null,null,null,null,null,null,null,null,null,null,null,null,null,null,null,null,null,null,null,null,null,null,null,null,null,null,null,null,null,null,null,null,null,null,null,null,null,null,null,null,null,null,null,null,null,null,null,null,null,null,null,null,null,null,null,null,null,null,null,null,null,null,null,null,null,null,"первый заезд личные очки",null,null,null,null,null,null,null,null,null,null,null,null,null,null,null,null,null,null,null,null,null,"второй заезд личные очки",null,null,null,null,null,null,null,null,null,null,null,null,null,null,null,null,null,null,null,null,null,null,"Первый заезд командные очки",null,null,null,null,null,null,null,null,null,null,null,null,null,null,null,null,null,null,null,null,null,null,"Второй заезд командные очки"]
["Класс  \"МХ Открытый\"  (0910331811Л).",null,null,null,null,null,null,null,null,null,null,null,null,null,null,null,null,null,null,null,null,null,null,null,null,null,null,null,null,null,null,null,null,null,null,null,null,null,null,null,null,null,null,null,null,null,null,null,null,null,null,null,null,null,null,null,null,null,null,null,null,null,null,null,null,null,null,null,null,null,null,null,null,null,null,null,null,null,null,null,null,null,null,null,null,null,null,null,null,null,null,null,null,null,null,null,null,null,null,null,null,null,null,null,null,null,null,null,null,null,null,null,null,null,null,null,null,null,null,null,null,null,null,null,null,null,null,null,null,null,null,null,null,null,null,null,null,null,null,null,null,null,null,null,null,null,null,null,null,null,null,null,null,null,null,null,null,null,null,null,1,2,3,4,5,6,7,8,9,10,11,12,13,14,15,16,17,18,19,20,21,"сх","Sym",1,2,3,4,5,6,7,8,9,10,11,12,13,14,15,16,17,18,19,20,21,"cx","sym",1,2,3,4,5,6,7,8,9,10,11,12,13,14,15,16,17,18,19,20,21,"сх","очки",1,2,3,4,5,6,7,8,9,10,11,12,13,14,15,16,17,18,19,20,21,"сх","очки",{"$f":"COUNT(FE5:IR5)","v":84},"Н. Стро","В. стро","место"]
[]
["Место","Ст. №","Фамилия, Имя","Тип лицензии","Раз  ряд","Город (край, район, область)","Команда","Мото","I-й заезд",null,"II-й заезд",null,"Сумма очков              в личном зачете","Сумма очк. в командном зачете"]
[null,null,null,null,null,null,null,null,"место","лич. Очки.","место","лич. Очки.",null,null,null,null,null,"первый заезд личные очки",null,null,null,null,null,null,null,null,null,null,null,null,null,null,null,null,null,null,null,null,null,"второй заезд личные очки",null,null,null,null,null,null,null,null,null,null,null,null,null,null,null,null,null,null,null,null,null,null,"Первый заезд командные очки",null,null,null,null,null,null,null,null,null,null,null,null,null,null,null,null,null,null,null,null,null,null,null,null,null,null,null,null,null,null,null,null,null,null,null,null,null,null,null,null,null,null,"Второй заезд командные очки",null,null,null,null,null,null,null,null,null,null,null,null,null,null,null,null,null,null,null,null,null,null,null,null,null,null,null,null,null,null,null,null,null,null,null,null,null,null,null,null,null,null,null,1,2,null,null,null,null,null,null,null,null,null,null,null,null,null,null,null,null,null,null,null,null,null,"первый этап"]
[null,null,null,null,null,null,null,null,null,null,null,null,null,null,null,null,1,2,3,4,5,6,7,8,9,10,11,12,13,14,15,16,17,18,19,20,21,"сх",null,1,2,3,4,5,6,7,8,9,10,11,12,13,14,15,16,17,18,19,20,null,"cx",null,1,2,3,4,5,6,7,8,9,10,11,12,13,14,15,16,17,18,19,20,21,22,23,24,25,26,27,28,29,30,31,32,33,34,35,36,37,38,39,40,null,null,null,1,2,3,4,5,6,7,8,9,10,11,12,13,14,15,16,17,18,19,20,21,22,23,24,25,26,27,28,29,30,31,32,33,34,35,36,37,38,39,40,null,null,null,null,null,null,null,"мин","Н. Стро","В. стро","место",null,"чр1","чр2",null,null,"первый заезд личные очки",null,null,null,null,null,null,null,null,null,null,null,null,null,null,null,null,null,null,null,null,null,"второй заезд личные очки",null,null,null,null,null,null,null,null,null,null,null,null,null,null,null,null,null,null,null,null,null,null,"Первый заезд командные очки",null,null,null,null,null,null,null,null,null,null,null,null,null,null,null,null,null,null,null,null,null,null,"Второй заезд командные очки"]
[1,130,"ГУДКОВ Михаил","А1-№000077","кмс","г.Санкт-Петербург","ДОСААФ Мототрек","КТМ",1,45,1,45,{"$f":"J10+L10","v":90}]
[2,341,"ЛОБАНОВ Пётр","А1","кмс","г.Санкт-Петербург","лично","КТМ",2,42,3,40,82]
[3,56,"КИРИЛЛОВ Илья","С-№2506","кмс","г.Санкт-петербург","SSMX ","Yamaha",3,40,4,38,78]
[4,159,"ВАЩИЛИН Владимир","С-№002309","б/р","г.Санкт-Петербург","лично","КТМ",6,35,2,42,77]
[5,147,"ГРИЩУК Андрей","С-№002324","б/р","г.Выборг, ЛО","СТК ДОСААФ Выборг","ктм",4,38,5,36,74]
[6,122,"БОГДАНОВ Роман","разовая",1,"г.Санкт-Петербург","Viktorov Off Road","Kawasaki",5,36,6,35,71]
[]
[null,"Главный судья"]
[null,"судья Третьей  категории:                                                                                Д.А.Савин (г. Санкт-Петербург, лицензия МФР тип В 1162  )                                                  "]
[null,"Главный секретарь соревнований"]
[null,"судья Первой категории:                                                                                  И.В. Гурьянова (г. Санкт-Петербург, лицнзия МФР Тип В 374)"]

{"sheet":"МХ Открытый В","index":7,"n_rows":41,"n_cols":256,"rows_kept":41,"cut":false,"hidden":false,"merged":[[6,3,8,3],[6,6,8,6],[7,11,8,11],[6,7,8,7],[7,8,8,8],[0,13,3,13],[1,0,1,11],[3,0,3,12],[2,0,2,12],[6,4,8,4],[7,9,8,9],[6,2,8,2],[6,12,8,12],[6,5,8,5],[4,0,4,12],[6,0,8,0],[6,10,6,11],[6,8,6,9],[6,1,8,1],[6,13,8,13],[7,10,8,10]]}
[]
["Показательные выступления в рамках Чемпионата Новгородской области по мотокроссу, IIэтап"]
["ПРОТОКОЛ  ЛИЧНОГО  ЗАЧЕТА",null,null,null,null,null,null,null,null,null,null,null,null,null,null,null,null,null,null,null,null,null,null,null,null,null,null,null,null,null,null,null,null,null,null,null,null,null,null,null,null,null,null,null,null,null,null,null,null,null,null,null,null,null,null,null,null,null,null,null,null,null,null,null,null,null,null,null,null,null,null,null,null,null,null,null,null,null,null,null,null,null,null,null,null,null,null,null,null,null,null,null,null,null,null,null,null,null,null,null,null,null,null,null,null,null,null,null,null,null,null,null,null,null,null,null,null,null,null,null,null,null,null,null,null,null,null,null,null,null,null,null,null,null,null,null,null,null,null,null,null,null,null,null,null,null,null,null,null,null,null,null,null,null,null,null,null,null,null,null,null,null,null,null,null,null,null,null,null,null,null,null,"первый этап"]
["п.Крестцы, Новгородская  область                                                                                                                       14-15 июня  2019 года.",null,null,null,null,null,null,null,null,null,null,null,null,null,null,null,null,null,null,null,null,null,null,null,null,null,null,null,null,null,null,null,null,null,null,null,null,null,null,null,null,null,null,null,null,null,null,null,null,null,null,null,null,null,null,null,null,null,null,null,null,null,null,null,null,null,null,null,null,null,null,null,null,null,null,null,null,null,null,null,null,null,null,null,null,null,null,null,null,null,null,null,null,null,null,null,null,null,null,null,null,null,null,null,null,null,null,null,null,null,null,null,null,null,null,null,null,null,null,null,null,null,null,null,null,null,null,null,null,null,null,null,null,null,null,null,null,null,null,null,null,null,null,null,null,null,null,null,null,null,null,null,null,null,null,null,null,null,null,null,null,"первый заезд личные очки",null,null,null,null,null,null,null,null,null,null,null,null,null,null,null,null,null,null,null,null,null,"второй заезд личные очки",null,null,null,null,null,null,null,null,null,null,null,null,null,null,null,null,null,null,null,null,null,null,"Первый заезд командные очки",null,null,null,null,null,null,null,null,null,null,null,null,null,null,null,null,null,null,null,null,null,null,"Второй заезд командные очки"]
["Класс  \"МХ Открытый В\" (мужчины).",null,null,null,null,null,null,null,null,null,null,null,null,null,null,null,null,null,null,null,null,null,null,null,null,null,null,null,null,null,null,null,null,null,null,null,null,null,null,null,null,null,null,null,null,null,null,null,null,null,null,null,null,null,null,null,null,null,null,null,null,null,null,null,null,null,null,null,null,null,null,null,null,null,null,null,null,null,null,null,null,null,null,null,null,null,null,null,null,null,null,null,null,null,null,null,null,null,null,null,null,null,null,null,null,null,null,null,null,null,null,null,null,null,null,null,null,null,null,null,null,null,null,null,null,null,null,null,null,null,null,null,null,null,null,null,null,null,null,null,null,null,null,null,null,null,null,null,null,null,null,null,null,null,null,null,null,null,null,null,1,2,3,4,5,6,7,8,9,10,11,12,13,14,15,16,17,18,19,20,21,"сх","Sym",1,2,3,4,5,6,7,8,9,10,11,12,13,14,15,16,17,18,19,20,21,"cx","sym",1,2,3,4,5,6,7,8,9,10,11,12,13,14,15,16,17,18,19,20,21,"сх","очки",1,2,3,4,5,6,7,8,9,10,11,12,13,14,15,16,17,18,19,20,21,"сх","очки",{"$f":"COUNT(FE5:IR5)","v":84},"Н. Стро","В. стро","место"]
[]
["Место","Ст. №","Фамилия, Имя","Тип лицензии","Раз  ряд","Город (край, район, область)","Команда","Мото","I-й заезд",null,"II-й заезд",null,"Сумма очков              в личном зачете","Сумма очк. в командном зачете"]
[null,null,null,null,null,null,null,null,"место","лич. Очки.","место","лич. Очки.",null,null,null,null,null,"первый заезд личные очки",null,null,null,null,null,null,null,null,null,null,null,null,null,null,null,null,null,null,null,null,null,"второй заезд личные очки",null,null,null,null,null,null,null,null,null,null,null,null,null,null,null,null,null,null,null,null,null,null,"Первый заезд командные очки",null,null,null,null,null,null,null,null,null,null,null,null,null,null,null,null,null,null,null,null,null,null,null,null,null,null,null,null,null,null,null,null,null,null,null,null,null,null,null,null,null,null,"Второй заезд командные очки",null,null,null,null,null,null,null,null,null,null,null,null,null,null,null,null,null,null,null,null,null,null,null,null,null,null,null,null,null,null,null,null,null,null,null,null,null,null,null,null,null,null,null,1,2,null,null,null,null,null,null,null,null,null,null,null,null,null,null,null,null,null,null,null,null,null,"первый этап"]
[null,null,null,null,null,null,null,null,null,null,null,null,null,null,null,null,1,2,3,4,5,6,7,8,9,10,11,12,13,14,15,16,17,18,19,20,21,"сх",null,1,2,3,4,5,6,7,8,9,10,11,12,13,14,15,16,17,18,19,20,null,"cx",null,1,2,3,4,5,6,7,8,9,10,11,12,13,14,15,16,17,18,19,20,21,22,23,24,25,26,27,28,29,30,31,32,33,34,35,36,37,38,39,40,null,null,null,1,2,3,4,5,6,7,8,9,10,11,12,13,14,15,16,17,18,19,20,21,22,23,24,25,26,27,28,29,30,31,32,33,34,35,36,37,38,39,40,null,null,null,null,null,null,null,"мин","Н. Стро","В. стро","место",null,"чр1","чр2",null,null,"первый заезд личные очки",null,null,null,null,null,null,null,null,null,null,null,null,null,null,null,null,null,null,null,null,null,"второй заезд личные очки",null,null,null,null,null,null,null,null,null,null,null,null,null,null,null,null,null,null,null,null,null,null,"Первый заезд командные очки",null,null,null,null,null,null,null,null,null,null,null,null,null,null,null,null,null,null,null,null,null,null,"Второй заезд командные очки"]
[1,79,"ЛАПУШКИН Александр","С-№2624","б/р","г.Кириши, ЛО","МК \" Кинеф\"","Yamaha",2,42,2,42,{"$f":"J10+L10","v":84}]
[2,124,"ПИКАЛЁВ Евгений","С-№2340","б/р","г.Псков","\"Позитивная механика\"","Husqvarna",4,38,1,45,{"$f":"J11+L11","v":83}]
[3,30,"КЛЮШКИН Сергей","А1","б/р","г.Санкт-Петербург","ДОСААФ Мототрек","КТМ",5,36,3,40,{"$f":"J12+L12","v":76}]
[4,39,"НОВИКОВ Даниил","А1-№24001867","б/р","г.Москва","ЦОКБ \"Лесхозмаш\"","КТМ",3,40,7,34,{"$f":"J13+L13","v":74}]
[5,72,"ПОЗВОЛЕВ Игорь","разовая","б/р","г.Владимир","ДНТЦ г.Владимир","КТМ",9,32,4,38,{"$f":"J14+L14","v":70}]
[6,83,"НЕМЧИНОВ Владимир","разовая","б/р","г.Вологда","МСТК \"Вологда\"","Honda",7,34,5,36,{"$f":"J15+L15","v":70}]
[7,11,"ВОЛКОВ Яков","С-№2552","б/р","г.Сланцы, ЛО","СЗСК","Suzuki",6,35,6,35,{"$f":"J16+L16","v":70}]
[8,141,"ЕГОРОВ Александр","С-№2638","б/р","г.Волосово, ЛО","лично","Honda",8,33,8,33,{"$f":"J17+L17","v":66}]
[9,848,"КОСТРОВ Сергей","С-№002325","б/р","г.Выборг ЛО","СТК ДОСААФ г.Выборг","КТМ",10,31,9,32,{"$f":"J18+L18","v":63}]
[10,44,"ЛЕЩИНСКИЙ Евгений","С-№002265","б/р","г.Санкт-Петербург","SSMX-Team","КТМ",11,30,11,30,{"$f":"J19+L19","v":60}]
[11,26,"БУЛЕКОВ Андрей","С-№002266","б/р","г.Санкт-Петербург","SSMX Team","Kawasaki",15,26,12,29,{"$f":"J20+L20","v":55}]
[12,35,"ЧИСТЯКОВ Александр","С-№002323","б/р","г.Выборг, ЛО","СТК ДОСААФ Выборг","КТМ",12,29,16,25,{"$f":"J21+L21","v":54}]
[13,8,"ШИЛОВ Николай","С-№002264","б/р","пос.Мурино","лично","КТМ",16,25,13,28,{"$f":"J22+L22","v":53}]
[14,768,"ЦВЕТКОВ Алексей","С-№2335","б/р","г.Псков","\"Позитивная механика\"","КТМ",14,27,15,26,{"$f":"J23+L23","v":53}]
[15,160,"АЛЕКСЕЕВ Алексей","С-№2333","б/р","г.Псков","\"Позитивная механика\"","КТМ",18,23,14,27,{"$f":"J24+L24","v":50}]
[16,25,"ИВОЧКИН Сергей","С-№00225","б/р","г.Санкт-Петербург","лично","КТМ",1,45,"сх",0,{"$f":"J25+L25","v":45}]
[17,6,"КУДРЯВЦЕВ Александр","С-№2636","б/р","г.Тосно,ЛО","г.Тосно","КТМ","нс","-",10,31,31]
[18,484,"ЛЮБИЧ Николай","С-№2628","б/р","г.Санкт-Петербург","SSMX","Husqvarna",13,28,"нс","-",28]
[19,57,"МОНАХОВ Александр","С-№002278","б/р","г.Санкт-Петербург","ВРСТК \"Выборжец\"","Honda",17,24,"нс","-",24]
[20,3,"ПОЗДЕЕВ Александр","ветеранская","б/р","г.Санкт-Петербург","MX 4U","Yamaha","сх",0,"нс","-",0]
[21,69,"ИВАНОВ Олег","С-№1018","б/р","г.Валдай, Новгородская обл.","лично","Kawasaki","сх",0,"нс","-",0]
["-",951,"ВОЛОДИН Виталий","С-№185316","б/р","г.Владимир","MX -Timing","Yamaha","нс","-","нс","-","-"]
[]
[]
[]
[]
[]
[]
[null,"Главный судья"]
[null,"судья Третьей  категории:                                                                                Д.А.Савин (г. Санкт-Петербург, лицензия МФР тип В 1162  )                                                  "]
[null,"Главный секретарь соревнований"]
[null,"судья Первой категории:                                                                                  И.В. Гурьянова (г. Санкт-Петербург, лицнзия МФР Тип В 374)"]

{"sheet":"МХ Открытый С","index":8,"n_rows":32,"n_cols":256,"rows_kept":32,"cut":false,"hidden":false,"merged":[[6,3,8,3],[6,6,8,6],[7,11,8,11],[6,7,8,7],[7,8,8,8],[0,13,3,13],[1,0,1,11],[3,0,3,12],[2,0,2,12],[6,4,8,4],[7,9,8,9],[6,2,8,2],[6,12,8,12],[6,5,8,5],[4,0,4,12],[6,0,8,0],[6,10,6,11],[6,8,6,9],[6,1,8,1],[6,13,8,13],[7,10,8,10]]}
[]
["Показательные выступления в рамках Чемпионата  Новгородской области по мотокроссу, IIэтап"]
["ПРОТОКОЛ  ЛИЧНОГО  ЗАЧЕТА",null,null,null,null,null,null,null,null,null,null,null,null,null,null,null,null,null,null,null,null,null,null,null,null,null,null,null,null,null,null,null,null,null,null,null,null,null,null,null,null,null,null,null,null,null,null,null,null,null,null,null,null,null,null,null,null,null,null,null,null,null,null,null,null,null,null,null,null,null,null,null,null,null,null,null,null,null,null,null,null,null,null,null,null,null,null,null,null,null,null,null,null,null,null,null,null,null,null,null,null,null,null,null,null,null,null,null,null,null,null,null,null,null,null,null,null,null,null,null,null,null,null,null,null,null,null,null,null,null,null,null,null,null,null,null,null,null,null,null,null,null,null,null,null,null,null,null,null,null,null,null,null,null,null,null,null,null,null,null,null,null,null,null,null,null,null,null,null,null,null,null,"первый этап"]
["п.Крестцы, Новгородская  область                                                                                                                       14-15 июня  2019 года.",null,null,null,null,null,null,null,null,null,null,null,null,null,null,null,null,null,null,null,null,null,null,null,null,null,null,null,null,null,null,null,null,null,null,null,null,null,null,null,null,null,null,null,null,null,null,null,null,null,null,null,null,null,null,null,null,null,null,null,null,null,null,null,null,null,null,null,null,null,null,null,null,null,null,null,null,null,null,null,null,null,null,null,null,null,null,null,null,null,null,null,null,null,null,null,null,null,null,null,null,null,null,null,null,null,null,null,null,null,null,null,null,null,null,null,null,null,null,null,null,null,null,null,null,null,null,null,null,null,null,null,null,null,null,null,null,null,null,null,null,null,null,null,null,null,null,null,null,null,null,null,null,null,null,null,null,null,null,null,null,"первый заезд личные очки",null,null,null,null,null,null,null,null,null,null,null,null,null,null,null,null,null,null,null,null,null,"второй заезд личные очки",null,null,null,null,null,null,null,null,null,null,null,null,null,null,null,null,null,null,null,null,null,null,"Первый заезд командные очки",null,null,null,null,null,null,null,null,null,null,null,null,null,null,null,null,null,null,null,null,null,null,"Второй заезд командные очки"]
["Класс \"МХ Открытый С\" (мужчины)",null,null,null,null,null,null,null,null,null,null,null,null,null,null,null,null,null,null,null,null,null,null,null,null,null,null,null,null,null,null,null,null,null,null,null,null,null,null,null,null,null,null,null,null,null,null,null,null,null,null,null,null,null,null,null,null,null,null,null,null,null,null,null,null,null,null,null,null,null,null,null,null,null,null,null,null,null,null,null,null,null,null,null,null,null,null,null,null,null,null,null,null,null,null,null,null,null,null,null,null,null,null,null,null,null,null,null,null,null,null,null,null,null,null,null,null,null,null,null,null,null,null,null,null,null,null,null,null,null,null,null,null,null,null,null,null,null,null,null,null,null,null,null,null,null,null,null,null,null,null,null,null,null,null,null,null,null,null,null,1,2,3,4,5,6,7,8,9,10,11,12,13,14,15,16,17,18,19,20,21,"сх","Sym",1,2,3,4,5,6,7,8,9,10,11,12,13,14,15,16,17,18,19,20,21,"cx","sym",1,2,3,4,5,6,7,8,9,10,11,12,13,14,15,16,17,18,19,20,21,"сх","очки",1,2,3,4,5,6,7,8,9,10,11,12,13,14,15,16,17,18,19,20,21,"сх","очки",{"$f":"COUNT(FE5:IR5)","v":84},"Н. Стро","В. стро","место"]
[]
["Место","Ст. №","Фамилия, Имя","Тип лицензии","Раз  ряд","Город (край, район, область)","Команда","Мото","I-й заезд",null,"II-й заезд",null,"Сумма очков              в личном зачете","Сумма очк. в командном зачете"]
[null,null,null,null,null,null,null,null,"место","лич. Очки.","место","лич. Очки.",null,null,null,null,null,"первый заезд личные очки",null,null,null,null,null,null,null,null,null,null,null,null,null,null,null,null,null,null,null,null,null,"второй заезд личные очки",null,null,null,null,null,null,null,null,null,null,null,null,null,null,null,null,null,null,null,null,null,null,"Первый заезд командные очки",null,null,null,null,null,null,null,null,null,null,null,null,null,null,null,null,null,null,null,null,null,null,null,null,null,null,null,null,null,null,null,null,null,null,null,null,null,null,null,null,null,null,"Второй заезд командные очки",null,null,null,null,null,null,null,null,null,null,null,null,null,null,null,null,null,null,null,null,null,null,null,null,null,null,null,null,null,null,null,null,null,null,null,null,null,null,null,null,null,null,null,1,2,null,null,null,null,null,null,null,null,null,null,null,null,null,null,null,null,null,null,null,null,null,"первый этап"]
[null,null,null,null,null,null,null,null,null,null,null,null,null,null,null,null,1,2,3,4,5,6,7,8,9,10,11,12,13,14,15,16,17,18,19,20,21,"сх",null,1,2,3,4,5,6,7,8,9,10,11,12,13,14,15,16,17,18,19,20,null,"cx",null,1,2,3,4,5,6,7,8,9,10,11,12,13,14,15,16,17,18,19,20,21,22,23,24,25,26,27,28,29,30,31,32,33,34,35,36,37,38,39,40,null,null,null,1,2,3,4,5,6,7,8,9,10,11,12,13,14,15,16,17,18,19,20,21,22,23,24,25,26,27,28,29,30,31,32,33,34,35,36,37,38,39,40,null,null,null,null,null,null,null,"мин","Н. Стро","В. стро","место",null,"чр1","чр2",null,null,"первый заезд личные очки",null,null,null,null,null,null,null,null,null,null,null,null,null,null,null,null,null,null,null,null,null,"второй заезд личные очки",null,null,null,null,null,null,null,null,null,null,null,null,null,null,null,null,null,null,null,null,null,null,"Первый заезд командные очки",null,null,null,null,null,null,null,null,null,null,null,null,null,null,null,null,null,null,null,null,null,null,"Второй заезд командные очки"]
[1,500,"КАЧНОВ Виталий","А3-№24001819","б/р","г.Великие Луки, Псковская обл.","ДОСААФ В.Луки","КТМ",1,45,1,45,{"$f":"J10+L10","v":90}]
[2,29,"АНДРОПОВ Сергей","С №002271","б/р","г.Санкт-Петербург","лично","КХ 450 ",2,42,2,42,{"$f":"J11+L11","v":84}]
[3,611,"ИВАНОВ Андрей","С-№1006","б/р","г.Валдай, Новгородская обл.","лично","Kawasaki",3,40,3,40,{"$f":"J12+L12","v":80}]
[4,53,"КУТУЗОВ Павел","С-№2637","б/р","г.Тосно, ЛО","Тосно","Yamaha",null,null,null,null,{"$f":"J13+L13","v":0}]
[5,47,"ГРИГОРЬЕВ Александр","С-№2639","б/р","г.Сосновый Бор, ЛО","лично","Yamaha",null,null,null,null,{"$f":"J14+L14","v":0}]
[6,1,"ГРИЩУК Андрей",null,"б/р","г.Выборг","СТК ДОСААФ г.Выборг","КТМ",null,null,null,null,{"$f":"J15+L15","v":0}]
[4,144,"ГУБИН Сергей","С-№1005","б/р","г.Боровичи, Новгородская обл.","лично","Kawasaki",4,38,4,38,{"$f":"J16+L16","v":76}]
[5,239,"ДЯДИЧКИН Павел","С-№2631","б/р","г.Санкт-Петербург","лично","КТМ",5,36,6,35,{"$f":"J17+L17","v":71}]
[6,705,"ТАЛЫЗИН Константин","С-№2551","б/р","г.Санкт-Петербург","Baltic Race","Yamaha",7,34,5,36,{"$f":"J18+L18","v":70}]
[7,53,"КУТУЗОВ Павел","С-№2637","б/р","г.Тосно, ЛО","Тосно","Yamaha",9,32,7,34,{"$f":"J19+L19","v":66}]
[8,739,"КУЗНЕЦОВ Игорь","С-№1014","б/р","г.Великий Новгород","ДОСААФ В.Новгород","Honda",8,33,8,33,{"$f":"J20+L20","v":66}]
[9,51,"БУСЛО Павел","разовая","б/р","г.Санкт-Петербург","Петергоф","Yamaha",6,35,11,30,{"$f":"J21+L21","v":65}]
[10,55,"ВАСИЛЬЕВ Юрий","С-№1017","б/р","г.Великие Луки, Псковская обл.","ДОСААФ В.Луки","Kawasaki",11,30,9,32,{"$f":"J22+L22","v":62}]
[11,12,"ЕРМИЛОВ Родион","С-№002279","б/р","г.Сланцы, ЛО","СТ Кросс","Suzuki",10,31,10,31,{"$f":"J23+L23","v":62}]
[]
[]
[]
[]
[]
[null,"Главный судья"]
[null,"судья Третьей  категории:                                                                                Д.А.Савин (г. Санкт-Петербург, лицензия МФР тип В 1162  )                                                  "]
[null,"Главный секретарь соревнований"]
[null,"судья Первой категории:                                                                                  И.В. Гурьянова (г. Санкт-Петербург, лицнзия МФР Тип В 374)"]

{"sheet":"ветераны А","index":9,"n_rows":25,"n_cols":256,"rows_kept":25,"cut":false,"hidden":false,"merged":[[6,5,8,5],[7,10,8,10],[7,8,8,8],[6,3,8,3],[6,8,6,9],[6,2,8,2],[0,13,3,13],[1,0,1,11],[3,0,3,12],[2,0,2,12],[6,1,8,1],[7,11,8,11],[6,6,8,6],[6,12,8,12],[6,4,8,4],[6,7,8,7],[6,0,8,0],[4,0,4,12],[7,9,8,9],[6,10,6,11],[6,13,8,13]]}
[]
["Показательные выступления в рамках Чемпионата Новгородской области по мотокроссу, IIэтап"]
["ПРОТОКОЛ  ЛИЧНОГО  ЗАЧЕТА",null,null,null,null,null,null,null,null,null,null,null,null,null,null,null,null,null,null,null,null,null,null,null,null,null,null,null,null,null,null,null,null,null,null,null,null,null,null,null,null,null,null,null,null,null,null,null,null,null,null,null,null,null,null,null,null,null,null,null,null,null,null,null,null,null,null,null,null,null,null,null,null,null,null,null,null,null,null,null,null,null,null,null,null,null,null,null,null,null,null,null,null,null,null,null,null,null,null,null,null,null,null,null,null,null,null,null,null,null,null,null,null,null,null,null,null,null,null,null,null,null,null,null,null,null,null,null,null,null,null,null,null,null,null,null,null,null,null,null,null,null,null,null,null,null,null,null,null,null,null,null,null,null,null,null,null,null,null,null,null,null,null,null,null,null,null,null,null,null,null,null,"первый этап"]
["п.Крестцы, Новгородская  область                                                                                                                       14-15 июня  2019 года.",null,null,null,null,null,null,null,null,null,null,null,null,null,null,null,null,null,null,null,null,null,null,null,null,null,null,null,null,null,null,null,null,null,null,null,null,null,null,null,null,null,null,null,null,null,null,null,null,null,null,null,null,null,null,null,null,null,null,null,null,null,null,null,null,null,null,null,null,null,null,null,null,null,null,null,null,null,null,null,null,null,null,null,null,null,null,null,null,null,null,null,null,null,null,null,null,null,null,null,null,null,null,null,null,null,null,null,null,null,null,null,null,null,null,null,null,null,null,null,null,null,null,null,null,null,null,null,null,null,null,null,null,null,null,null,null,null,null,null,null,null,null,null,null,null,null,null,null,null,null,null,null,null,null,null,null,null,null,null,null,"первый заезд личные очки",null,null,null,null,null,null,null,null,null,null,null,null,null,null,null,null,null,null,null,null,null,"второй заезд личные очки",null,null,null,null,null,null,null,null,null,null,null,null,null,null,null,null,null,null,null,null,null,null,"Первый заезд командные очки",null,null,null,null,null,null,null,null,null,null,null,null,null,null,null,null,null,null,null,null,null,null,"Второй заезд командные очки"]
["Класс  \"Ветераны А\" (мужчины).",null,null,null,null,null,null,null,null,null,null,null,null,null,null,null,null,null,null,null,null,null,null,null,null,null,null,null,null,null,null,null,null,null,null,null,null,null,null,null,null,null,null,null,null,null,null,null,null,null,null,null,null,null,null,null,null,null,null,null,null,null,null,null,null,null,null,null,null,null,null,null,null,null,null,null,null,null,null,null,null,null,null,null,null,null,null,null,null,null,null,null,null,null,null,null,null,null,null,null,null,null,null,null,null,null,null,null,null,null,null,null,null,null,null,null,null,null,null,null,null,null,null,null,null,null,null,null,null,null,null,null,null,null,null,null,null,null,null,null,null,null,null,null,null,null,null,null,null,null,null,null,null,null,null,null,null,null,null,null,1,2,3,4,5,6,7,8,9,10,11,12,13,14,15,16,17,18,19,20,21,"сх","Sym",1,2,3,4,5,6,7,8,9,10,11,12,13,14,15,16,17,18,19,20,21,"cx","sym",1,2,3,4,5,6,7,8,9,10,11,12,13,14,15,16,17,18,19,20,21,"сх","очки",1,2,3,4,5,6,7,8,9,10,11,12,13,14,15,16,17,18,19,20,21,"сх","очки",{"$f":"COUNT(FE5:IR5)","v":84},"Н. Стро","В. стро","место"]
[]
["Место","Ст. №","Фамилия, Имя","Тип лицензии","Раз  ряд","Город (край, район, область)","Команда","Мото","I-й заезд",null,"II-й заезд",null,"Сумма очков              в личном зачете","Сумма очк. в командном зачете"]
[null,null,null,null,null,null,null,null,"место","лич. Очки.","место","лич. Очки.",null,null,null,null,null,"первый заезд личные очки",null,null,null,null,null,null,null,null,null,null,null,null,null,null,null,null,null,null,null,null,null,"второй заезд личные очки",null,null,null,null,null,null,null,null,null,null,null,null,null,null,null,null,null,null,null,null,null,null,"Первый заезд командные очки",null,null,null,null,null,null,null,null,null,null,null,null,null,null,null,null,null,null,null,null,null,null,null,null,null,null,null,null,null,null,null,null,null,null,null,null,null,null,null,null,null,null,"Второй заезд командные очки",null,null,null,null,null,null,null,null,null,null,null,null,null,null,null,null,null,null,null,null,null,null,null,null,null,null,null,null,null,null,null,null,null,null,null,null,null,null,null,null,null,null,null,1,2,null,null,null,null,null,null,null,null,null,null,null,null,null,null,null,null,null,null,null,null,null,"первый этап"]
[null,null,null,null,null,null,null,null,null,null,null,null,null,null,null,null,1,2,3,4,5,6,7,8,9,10,11,12,13,14,15,16,17,18,19,20,21,"сх",null,1,2,3,4,5,6,7,8,9,10,11,12,13,14,15,16,17,18,19,20,null,"cx",null,1,2,3,4,5,6,7,8,9,10,11,12,13,14,15,16,17,18,19,20,21,22,23,24,25,26,27,28,29,30,31,32,33,34,35,36,37,38,39,40,null,null,null,1,2,3,4,5,6,7,8,9,10,11,12,13,14,15,16,17,18,19,20,21,22,23,24,25,26,27,28,29,30,31,32,33,34,35,36,37,38,39,40,null,null,null,null,null,null,null,"мин","Н. Стро","В. стро","место",null,"чр1","чр2",null,null,"первый заезд личные очки",null,null,null,null,null,null,null,null,null,null,null,null,null,null,null,null,null,null,null,null,null,"второй заезд личные очки",null,null,null,null,null,null,null,null,null,null,null,null,null,null,null,null,null,null,null,null,null,null,"Первый заезд командные очки",null,null,null,null,null,null,null,null,null,null,null,null,null,null,null,null,null,null,null,null,null,null,"Второй заезд командные очки"]
[1,72,"ЦХАЙ Алексей","С-№1004","б/р","г.Боровичи, Новгородская обл.","\"Сам себе МХ\"","Honda",1,45,1,45,{"$f":"J10+L10","v":90}]
[2,259,"КОЛОТИЙ Юрий","А1-№24001622","кмс","г.Владимир","РУСО","КТМ",2,42,2,42,{"$f":"J11+L11","v":84}]
[3,703,"ЧЕБОТАЕВ Андрей","А1-№84000903","б/р","г.Северик, Псковская обл.","Мото Фитнес","Suzuki",3,40,3,40,80]
[4,79,"КОЗЛОВ Валентин","А1-№24001839","кмс","г.Пушкин","МоТо Family","КТМ",4,38,4,38,76]
[5,27,"МАЙОРОВ Виктор","С-№1024","б/р","г.Санкт-Петербург","ДОСААФ Мототрек","КТМ",5,36,"нс","-",36]
[]
[]
[]
[]
[]
[]
[]
[null,"Главный судья"]
[null,"судья Третьей  категории:                                                                                Д.А.Савин (г. Санкт-Петербург, лицензия МФР тип В 1162  )                                                  "]
[null,"Главный секретарь соревнований"]
[null,"судья Первой категории:                                                                                  И.В. Гурьянова (г. Санкт-Петербург, лицнзия МФР Тип В 374)"]

{"sheet":"ветераны Б","index":10,"n_rows":23,"n_cols":256,"rows_kept":23,"cut":false,"hidden":false,"merged":[[6,13,8,13],[7,8,8,8],[7,9,8,9],[7,10,8,10],[7,11,8,11],[6,12,8,12],[6,5,8,5],[6,6,8,6],[6,7,8,7],[6,8,6,9],[6,10,6,11],[0,13,3,13],[1,0,1,11],[2,0,2,12],[3,0,3,12],[4,0,4,12],[6,0,8,0],[6,1,8,1],[6,2,8,2],[6,3,8,3],[6,4,8,4]]}
[]
["Показательные выступления в рамках Чемпионата Новгородской области по мотокроссу, IIэтап"]
["ПРОТОКОЛ  ЛИЧНОГО  ЗАЧЕТА",null,null,null,null,null,null,null,null,null,null,null,null,null,null,null,null,null,null,null,null,null,null,null,null,null,null,null,null,null,null,null,null,null,null,null,null,null,null,null,null,null,null,null,null,null,null,null,null,null,null,null,null,null,null,null,null,null,null,null,null,null,null,null,null,null,null,null,null,null,null,null,null,null,null,null,null,null,null,null,null,null,null,null,null,null,null,null,null,null,null,null,null,null,null,null,null,null,null,null,null,null,null,null,null,null,null,null,null,null,null,null,null,null,null,null,null,null,null,null,null,null,null,null,null,null,null,null,null,null,null,null,null,null,null,null,null,null,null,null,null,null,null,null,null,null,null,null,null,null,null,null,null,null,null,null,null,null,null,null,null,null,null,null,null,null,null,null,null,null,null,null,"первый этап"]
["п.Крестцы, Новгородская  область                                                                                                                       14-15 июня  2019 года.",null,null,null,null,null,null,null,null,null,null,null,null,null,null,null,null,null,null,null,null,null,null,null,null,null,null,null,null,null,null,null,null,null,null,null,null,null,null,null,null,null,null,null,null,null,null,null,null,null,null,null,null,null,null,null,null,null,null,null,null,null,null,null,null,null,null,null,null,null,null,null,null,null,null,null,null,null,null,null,null,null,null,null,null,null,null,null,null,null,null,null,null,null,null,null,null,null,null,null,null,null,null,null,null,null,null,null,null,null,null,null,null,null,null,null,null,null,null,null,null,null,null,null,null,null,null,null,null,null,null,null,null,null,null,null,null,null,null,null,null,null,null,null,null,null,null,null,null,null,null,null,null,null,null,null,null,null,null,null,null,"первый заезд личные очки",null,null,null,null,null,null,null,null,null,null,null,null,null,null,null,null,null,null,null,null,null,"второй заезд личные очки",null,null,null,null,null,null,null,null,null,null,null,null,null,null,null,null,null,null,null,null,null,null,"Первый заезд командные очки",null,null,null,null,null,null,null,null,null,null,null,null,null,null,null,null,null,null,null,null,null,null,"Второй заезд командные очки"]
["Класс  \"Ветераны Б\" (мужчины).",null,null,null,null,null,null,null,null,null,null,null,null,null,null,null,null,null,null,null,null,null,null,null,null,null,null,null,null,null,null,null,null,null,null,null,null,null,null,null,null,null,null,null,null,null,null,null,null,null,null,null,null,null,null,null,null,null,null,null,null,null,null,null,null,null,null,null,null,null,null,null,null,null,null,null,null,null,null,null,null,null,null,null,null,null,null,null,null,null,null,null,null,null,null,null,null,null,null,null,null,null,null,null,null,null,null,null,null,null,null,null,null,null,null,null,null,null,null,null,null,null,null,null,null,null,null,null,null,null,null,null,null,null,null,null,null,null,null,null,null,null,null,null,null,null,null,null,null,null,null,null,null,null,null,null,null,null,null,null,1,2,3,4,5,6,7,8,9,10,11,12,13,14,15,16,17,18,19,20,21,"сх","Sym",1,2,3,4,5,6,7,8,9,10,11,12,13,14,15,16,17,18,19,20,21,"cx","sym",1,2,3,4,5,6,7,8,9,10,11,12,13,14,15,16,17,18,19,20,21,"сх","очки",1,2,3,4,5,6,7,8,9,10,11,12,13,14,15,16,17,18,19,20,21,"сх","очки",{"$f":"COUNT(FE5:IR5)","v":84},"Н. Стро","В. стро","место"]
[]
["Место","Ст. №","Фамилия, Имя","Тип лицензии","Раз  ряд","Город (край, район, область)","Команда","Мото","I-й заезд",null,"II-й заезд",null,"Сумма очков              в личном зачете","Сумма очк. в командном зачете"]
[null,null,null,null,null,null,null,null,"место","лич. Очки.","место","лич. Очки.",null,null,null,null,null,"первый заезд личные очки",null,null,null,null,null,null,null,null,null,null,null,null,null,null,null,null,null,null,null,null,null,"второй заезд личные очки",null,null,null,null,null,null,null,null,null,null,null,null,null,null,null,null,null,null,null,null,null,null,"Первый заезд командные очки",null,null,null,null,null,null,null,null,null,null,null,null,null,null,null,null,null,null,null,null,null,null,null,null,null,null,null,null,null,null,null,null,null,null,null,null,null,null,null,null,null,null,"Второй заезд командные очки",null,null,null,null,null,null,null,null,null,null,null,null,null,null,null,null,null,null,null,null,null,null,null,null,null,null,null,null,null,null,null,null,null,null,null,null,null,null,null,null,null,null,null,1,2,null,null,null,null,null,null,null,null,null,null,null,null,null,null,null,null,null,null,null,null,null,"первый этап"]
[null,null,null,null,null,null,null,null,null,null,null,null,null,null,null,null,1,2,3,4,5,6,7,8,9,10,11,12,13,14,15,16,17,18,19,20,21,"сх",null,1,2,3,4,5,6,7,8,9,10,11,12,13,14,15,16,17,18,19,20,null,"cx",null,1,2,3,4,5,6,7,8,9,10,11,12,13,14,15,16,17,18,19,20,21,22,23,24,25,26,27,28,29,30,31,32,33,34,35,36,37,38,39,40,null,null,null,1,2,3,4,5,6,7,8,9,10,11,12,13,14,15,16,17,18,19,20,21,22,23,24,25,26,27,28,29,30,31,32,33,34,35,36,37,38,39,40,null,null,null,null,null,null,null,"мин","Н. Стро","В. стро","место",null,"чр1","чр2",null,null,"первый заезд личные очки",null,null,null,null,null,null,null,null,null,null,null,null,null,null,null,null,null,null,null,null,null,"второй заезд личные очки",null,null,null,null,null,null,null,null,null,null,null,null,null,null,null,null,null,null,null,null,null,null,"Первый заезд командные очки",null,null,null,null,null,null,null,null,null,null,null,null,null,null,null,null,null,null,null,null,null,null,"Второй заезд командные очки"]
[1,113,"ЛЕЗИНОВ Андрей","С-№4876","б/р","г.Вологда","лично","КТМ",1,45,1,45,{"$f":"J10+L10","v":90}]
[2,24,"ПИСКОТИН Евгений","С-№002276","б/р","г.Тосно,ЛО","лично","Kawasaki",2,42,2,42,84]
[3,78,"КУДРЯВЦЕВ Александр","№000341 ветеранская","б/р","г.Тосно","Тосно ","Honda",3,40,3,40,80]
[]
[]
[]
[]
[]
[]
[]
[null,"Главный судья"]
[null,"судья Третьей  категории:                                                                                Д.А.Савин (г. Санкт-Петербург, лицензия МФР тип В 1162  )                                                  "]
[null,"Главный секретарь соревнований"]
[null,"судья Первой категории:                                                                                  И.В. Гурьянова (г. Санкт-Петербург, лицнзия МФР Тип В 374)"]

{"sheet":"ветераны В","index":11,"n_rows":23,"n_cols":256,"rows_kept":23,"cut":false,"hidden":false,"merged":[[6,13,8,13],[7,8,8,8],[7,9,8,9],[7,10,8,10],[7,11,8,11],[6,12,8,12],[6,5,8,5],[6,6,8,6],[6,7,8,7],[6,8,6,9],[6,10,6,11],[0,13,3,13],[1,0,1,11],[2,0,2,12],[3,0,3,12],[4,0,4,12],[6,0,8,0],[6,1,8,1],[6,2,8,2],[6,3,8,3],[6,4,8,4]]}
[]
["Показательные выступления в рамках Чемпионата Новгородской области по мотокроссу, IIэтап"]
["ПРОТОКОЛ  ЛИЧНОГО  ЗАЧЕТА",null,null,null,null,null,null,null,null,null,null,null,null,null,null,null,null,null,null,null,null,null,null,null,null,null,null,null,null,null,null,null,null,null,null,null,null,null,null,null,null,null,null,null,null,null,null,null,null,null,null,null,null,null,null,null,null,null,null,null,null,null,null,null,null,null,null,null,null,null,null,null,null,null,null,null,null,null,null,null,null,null,null,null,null,null,null,null,null,null,null,null,null,null,null,null,null,null,null,null,null,null,null,null,null,null,null,null,null,null,null,null,null,null,null,null,null,null,null,null,null,null,null,null,null,null,null,null,null,null,null,null,null,null,null,null,null,null,null,null,null,null,null,null,null,null,null,null,null,null,null,null,null,null,null,null,null,null,null,null,null,null,null,null,null,null,null,null,null,null,null,null,"первый этап"]
["п.Крестцы, Новгородская  область                                                                                                                       14-15 июня  2019 года.",null,null,null,null,null,null,null,null,null,null,null,null,null,null,null,null,null,null,null,null,null,null,null,null,null,null,null,null,null,null,null,null,null,null,null,null,null,null,null,null,null,null,null,null,null,null,null,null,null,null,null,null,null,null,null,null,null,null,null,null,null,null,null,null,null,null,null,null,null,null,null,null,null,null,null,null,null,null,null,null,null,null,null,null,null,null,null,null,null,null,null,null,null,null,null,null,null,null,null,null,null,null,null,null,null,null,null,null,null,null,null,null,null,null,null,null,null,null,null,null,null,null,null,null,null,null,null,null,null,null,null,null,null,null,null,null,null,null,null,null,null,null,null,null,null,null,null,null,null,null,null,null,null,null,null,null,null,null,null,null,"первый заезд личные очки",null,null,null,null,null,null,null,null,null,null,null,null,null,null,null,null,null,null,null,null,null,"второй заезд личные очки",null,null,null,null,null,null,null,null,null,null,null,null,null,null,null,null,null,null,null,null,null,null,"Первый заезд командные очки",null,null,null,null,null,null,null,null,null,null,null,null,null,null,null,null,null,null,null,null,null,null,"Второй заезд командные очки"]
["Класс  \"Ветераны В\" (мужчины).",null,null,null,null,null,null,null,null,null,null,null,null,null,null,null,null,null,null,null,null,null,null,null,null,null,null,null,null,null,null,null,null,null,null,null,null,null,null,null,null,null,null,null,null,null,null,null,null,null,null,null,null,null,null,null,null,null,null,null,null,null,null,null,null,null,null,null,null,null,null,null,null,null,null,null,null,null,null,null,null,null,null,null,null,null,null,null,null,null,null,null,null,null,null,null,null,null,null,null,null,null,null,null,null,null,null,null,null,null,null,null,null,null,null,null,null,null,null,null,null,null,null,null,null,null,null,null,null,null,null,null,null,null,null,null,null,null,null,null,null,null,null,null,null,null,null,null,null,null,null,null,null,null,null,null,null,null,null,null,1,2,3,4,5,6,7,8,9,10,11,12,13,14,15,16,17,18,19,20,21,"сх","Sym",1,2,3,4,5,6,7,8,9,10,11,12,13,14,15,16,17,18,19,20,21,"cx","sym",1,2,3,4,5,6,7,8,9,10,11,12,13,14,15,16,17,18,19,20,21,"сх","очки",1,2,3,4,5,6,7,8,9,10,11,12,13,14,15,16,17,18,19,20,21,"сх","очки",{"$f":"COUNT(FE5:IR5)","v":84},"Н. Стро","В. стро","место"]
[]
["Место","Ст. №","Фамилия, Имя","Тип лицензии","Раз  ряд","Город (край, район, область)","Команда","Мото","I-й заезд",null,"II-й заезд",null,"Сумма очков              в личном зачете","Сумма очк. в командном зачете"]
[null,null,null,null,null,null,null,null,"место","лич. Очки.","место","лич. Очки.",null,null,null,null,null,"первый заезд личные очки",null,null,null,null,null,null,null,null,null,null,null,null,null,null,null,null,null,null,null,null,null,"второй заезд личные очки",null,null,null,null,null,null,null,null,null,null,null,null,null,null,null,null,null,null,null,null,null,null,"Первый заезд командные очки",null,null,null,null,null,null,null,null,null,null,null,null,null,null,null,null,null,null,null,null,null,null,null,null,null,null,null,null,null,null,null,null,null,null,null,null,null,null,null,null,null,null,"Второй заезд командные очки",null,null,null,null,null,null,null,null,null,null,null,null,null,null,null,null,null,null,null,null,null,null,null,null,null,null,null,null,null,null,null,null,null,null,null,null,null,null,null,null,null,null,null,1,2,null,null,null,null,null,null,null,null,null,null,null,null,null,null,null,null,null,null,null,null,null,"первый этап"]
[null,null,null,null,null,null,null,null,null,null,null,null,null,null,null,null,1,2,3,4,5,6,7,8,9,10,11,12,13,14,15,16,17,18,19,20,21,"сх",null,1,2,3,4,5,6,7,8,9,10,11,12,13,14,15,16,17,18,19,20,null,"cx",null,1,2,3,4,5,6,7,8,9,10,11,12,13,14,15,16,17,18,19,20,21,22,23,24,25,26,27,28,29,30,31,32,33,34,35,36,37,38,39,40,null,null,null,1,2,3,4,5,6,7,8,9,10,11,12,13,14,15,16,17,18,19,20,21,22,23,24,25,26,27,28,29,30,31,32,33,34,35,36,37,38,39,40,null,null,null,null,null,null,null,"мин","Н. Стро","В. стро","место",null,"чр1","чр2",null,null,"первый заезд личные очки",null,null,null,null,null,null,null,null,null,null,null,null,null,null,null,null,null,null,null,null,null,"второй заезд личные очки",null,null,null,null,null,null,null,null,null,null,null,null,null,null,null,null,null,null,null,null,null,null,"Первый заезд командные очки",null,null,null,null,null,null,null,null,null,null,null,null,null,null,null,null,null,null,null,null,null,null,"Второй заезд командные очки"]
[1,17,"ВАСИЛЬЕВ Виктор","А-№000343 ветеранская",1,"г.Тосно, ЛО","СТК Тосно","КТМ",1,45,1,45,{"$f":"J10+L10","v":90}]
[2,243,"ПОНОМАРЁВ Валерий","№000344 ветеранская","б/р","г.Мурманск","лично","Yamaha",2,42,2,42,84]
[3,26,"АФАНАСЬЕВ Леонид","С-№002274 ветеранская","б/р","г.Санкт-Петербург","лично","КТМ",3,40,3,40,80]
[]
[]
[]
[]
[]
[]
[]
[null,"Главный судья"]
[null,"судья Третьей  категории:                                                                                Д.А.Савин (г. Санкт-Петербург, лицензия МФР тип В 1162  )                                                  "]
[null,"Главный секретарь соревнований"]
[null,"судья Первой категории:                                                                                  И.В. Гурьянова (г. Санкт-Петербург, лицнзия МФР Тип В 374)"]

{"sheet":"Лист1","index":12,"n_rows":0,"n_cols":0,"rows_kept":0,"cut":false,"hidden":false,"merged":[]}